Workbook

Sheet Summary
B1: Weight Loss Tracker
B3: =IF(Settings!C3="","",Settings!C3) -> Brian | C3: Add New Measurements | D3: Starting Measurements | E3: My Progress To Date | F3: My Goals | G3: Remaining | J3: My current Body Mass Index (BMI)
B4: Date: | C4: 2017-02-15 | D4: =IF(Settings!C8="","",Settings!C8) -> 2016-08-13 | E4: =IF(Data!A1=0,"",Data!A1) -> 2017-02-08 | F4: =IF(Settings!E8="","",Settings!E8) -> 2017-06-01 | G4: =IFERROR(IF(E4="","",IF(H4="days",F4-E4,(F4-E4)/7)),"") -> 113 | H4: =F20 -> days | J4: =IFERROR(IF(Settings!$F$5="Metric",E7/(D6*D6/10000),E7/(D6*D6)*703),0) -> 38.65815764
B5: Measurements | D5: % Body weight loss | E5: =IF(OR(E7="",D7=0),"",(D7-E7)/D7) -> 0.03663613655 | F5: =IFERROR((D7-F7)/D7,"") -> 0.292256453 | J5: BMI = weight / (height x height)
B6: =Settings!B10 -> Height (cm): | D6: =Settings!C10 -> 173 | K6: Less than 18.5 | L6: Under weight
B7: =Settings!B11 -> Weight (kg): | D7: =Settings!C11 -> 120.1 | E7: =Data!B1 -> 115.7 | F7: =Settings!E11 -> 85 | G7: =IF(E7="","",F7-E7) -> -30.7 | H7: =IF(Settings!$F$5="Imperial","pounds","kg's") -> kg's | K7: 18.5 to 24.9 | L7: Healthy
B8: =Settings!B12 -> Chest (cm): | D8: =Settings!C12 -> 110 | E8: =Data!C1 -> 127 | F8: =Settings!E12 -> 105 | G8: =IF(E8="","",F8-E8) -> -22 | H8: =IF(Settings!$F$5="Imperial","inches","cm's") -> cm's | K8: 25 to 29.9 | L8: Over weight
B9: =Settings!B13 -> Waist (cm): | D9: =Settings!C13 -> 107 | E9: =Data!D1 -> 134 | F9: =Settings!E13 -> 97 | G9: -37 | H9: =IF(Settings!$F$5="Imperial","inches","cm's") -> cm's | K9: 30 to 39.9 | L9: Obese
B10: =Settings!B14 -> Hips (cm): | D10: =Settings!C14 -> 105 | E10: =Data!E1 -> 134 | F10: =Settings!E14 -> 102 | G10: -32 | H10: =IF(Settings!$F$5="Imperial","inches","cm's") -> cm's | K10: 40 and over | L10: Morbidly obese
B11: =Settings!B15 -> Neck (cm): | D11: =Settings!C15 -> 42 | E11: =Data!F1 -> 45 | F11: =Settings!E15 -> 36 | G11: -9 | H11: =IF(Settings!$F$5="Imperial","inches","cm's") -> cm's
B12: =Settings!B16 -> Thigh (cm): | D12: =Settings!C16 -> 55 | E12: =Data!G1 -> 65 | F12: =Settings!E16 -> 50 | G12: -15 | H12: =IF(Settings!$F$5="Imperial","inches","cm's") -> cm's | J12: Estimated Lean Body Weight
B13: Blood Pressure
B14: =Settings!B18 -> Systolic (mmHg): | D14: =Settings!C18 -> 146 | E14: =Data!M1 -> 146 | F14: =Settings!E18 -> 115 | G14: =IF(E14="","",F14-E14) -> -31 | H14: mmHg | J14: Estimated Lean Body Weight | L14: =IF(Data!$D$1=0,"-",Data!H1) -> 75.8717 | M14: =H7 -> kg's | N14: =IF(Data!$D$1=0,"Please add your waist measurement for these figures to be calculated","") -> 
B15: =Settings!B19 -> Diastolic (mmHg): | D15: =Settings!C19 -> 89 | E15: =Data!N1 -> 89 | F15: =Settings!E19 -> 75 | G15: =IF(E15="","",F15-E15) -> -14 | H15: mmHg | J15: Estimated Body Fat Weight | L15: =IF(Data!$D$1=0,"-",Data!I1) -> 44.2283 | M15: =M14 -> kg's
B16: =Settings!B20 -> Pulse (beats/sec): | D16: =Settings!C20 -> 84 | E16: =Data!O1 -> 82 | F16: =Settings!E20 -> 65 | G16: -17 | H16: beats/sec | J16: Estimated Body Fat Percentage | L16: =IF(Data!$D$1=0,"-",Data!J1) -> 36.82622814 | M16: %
B18: How am I progressing?
B20: How long has it been since my initial measurements: | E20: =IF(D4="","",IF(F20="days",TODAY()-$D$4,(TODAY()-$D$4)/7)) -> 186 | F20: days
B21: My total weight loss to date: | E21: =IFERROR(Settings!C11-Data!B1,"") -> 4.4 | F21: =IF(Settings!$F$5="Imperial","pounds","kg's") -> kg's
E22: =IFERROR(E21/Settings!C11,"") -> 0.03663613655 | F22: % Body Weight
B23: My average weight loss to date: | E23: =IFERROR(E21/E20,"") -> 0.02365591398 | F23: =IF(Settings!$F$5="Imperial",IF(F20="days","pounds per day","pounds per week"),IF(F20="days","kg's per day","kg's per week")) -> kg's per day
B24: My average weight loss required to meet my goal is: | E24: =IFERROR(G7/G4*-1,"") -> 0.2716814159 | F24: =IF(Settings!$F$5="Imperial",IF(F20="days","pounds per day","pounds per week"),IF(F20="days","kg's per day","kg's per week")) -> kg's per day
B25: My % body weight loss goal: | E25: =IFERROR(F5,"") -> 0.292256453 | F25: %
B26: At my current rate of weight loss I will:
B27: =IFERROR("- Lose a total of "&TEXT(E23*G4,"0.00")&IF(Settings!$F$5="Imperial"," pounds"," kg's")&" at my goal date (my goal weight loss is: "&TEXT(D7-F7,"0.00")&IF(Settings!$F$5="Imperial"," pounds"," kg's")&".)","") -> - Lose a total of 2.67 kg's at my goal date (my goal weight loss is: 35.10 kg's.)
B28: =IFERROR("- My weight at my goal date will be: "&TEXT($D$7-(E23*G4),"0.00")&IF(Settings!$F$5="Imperial"," pounds"," kg's")&" (my goal weight is: "&TEXT(F7,"0.00")&IF(Settings!$F$5="Imperial"," pounds"," kg's")&".)","") -> - My weight at my goal date will be: 117.43 kg's (my goal weight is: 85.00 kg's.)
B29: =IFERROR("- meaning I will have lost "&TEXT((1-(($D$7-(E23*G4))/$D$7)),"0.00%")&" of my starting body weight (my goal % weight loss is: "&TEXT(F5,"0.00%")&".)","") -> - meaning I will have lost 2.23% of my starting body weight (my goal % weight loss is: 29.23%.)

Sheet Data
A1: =MAX(data[Date]) -> 2017-02-08 | B1: =IFERROR(LOOKUP(2,1/(NOT(ISBLANK(data[Weight]))),data[Weight]),0) -> 115.7 | C1: =IFERROR(LOOKUP(2,1/(NOT(ISBLANK(data[Chest]))),data[Chest]),0) -> 127 | D1: =IFERROR(LOOKUP(2,1/(NOT(ISBLANK(data[Waist]))),data[Waist]),0) -> 134 | E1: =IFERROR(LOOKUP(2,1/(NOT(ISBLANK(data[Hips]))),data[Hips]),0) -> 134 | F1: =IFERROR(LOOKUP(2,1/(NOT(ISBLANK(data[Neck]))),data[Neck]),0) -> 45 | G1: =IFERROR(LOOKUP(2,1/(NOT(ISBLANK(data[Thigh]))),data[Thigh]),0) -> 65 | H1: =VLOOKUP($D1,data[[Waist]:[Goal Weight (kg)]],COLUMNS($D$4:H6),FALSE) -> 75.8717 | I1: =VLOOKUP($D1,data[[Waist]:[Goal Weight (kg)]],COLUMNS($D$4:I6),FALSE) -> 44.2283 | J1: =VLOOKUP($D1,data[[Waist]:[Goal Weight (kg)]],COLUMNS($D$4:J6),FALSE) -> 36.82622814 | K1: =VLOOKUP($B1,data[[Weight]:[Goal Weight (kg)]],COLUMNS($B$4:K6),FALSE) -> 38.65815764 | L1: =VLOOKUP($B1,data[[Weight]:[Goal Weight (kg)]],COLUMNS($B$4:L6),FALSE) -> 85 | M1: =IFERROR(LOOKUP(2,1/(NOT(ISBLANK(data[Systolic (mmHg)]))),data[Systolic (mmHg)]),0) -> 146 | N1: =IFERROR(LOOKUP(2,1/(NOT(ISBLANK(data[Diastolic (mmHg)]))),data[Diastolic (mmHg)]),0) -> 89 | O1: =IFERROR(LOOKUP(2,1/(NOT(ISBLANK(data[Pulse (beats/sec)]))),data[Pulse (beats/sec)]),0) -> 82
B2: My Data
A3: Date | B3: Weight | C3: Chest | D3: Waist | E3: Hips | F3: Neck | G3: Thigh | H3: Estimated Lean Body Weight | I3: Estimated Body Fat Weight | J3: Estimated Body Fat Percentage | K3: Estimated Body Mass Index (BMI) | L3: Goal Weight (kg) | M3: Systolic (mmHg) | N3: Diastolic (mmHg) | O3: Pulse (beats/sec)
A4: 2016-08-13 | B4: 120.1 | C4: 127 | D4: 134 | E4: 134 | F4: 45 | G4: 65 | H4: =IF(B4="",0,IF(Settings!$F$5="Metric",IF(Settings!$F$3="Male",B4*0.407+Settings!$C$10*0.267-19.2,B4*0.252+Settings!$C$10*0.473-48.3),IF(Settings!$F$3="Male",B4*0.45359237*0.407+Settings!$C$10*2.54*0.267-19.2,B4*0.45359237*0.252+Settings!$C$10*2.54*0.473-48.3))) -> 75.8717 | I4: =IF(OR(B4="",H4=0),0,B4-H4) -> 44.2283 | J4: =IF(I4=0,0,(I4*100)/B4) -> 36.82622814 | K4: =B4/(Summary!$D$6^2/10000) -> 40.12830365 | L4: =Summary!$F$7 -> 85 | M4: 146 | N4: 89 | O4: 84 | Q4: DO NOT Delete this row
A5: 2016-09-02 | B5: 118.3 | H5: =IF(B5="",0,IF(Settings!$F$5="Metric",IF(Settings!$F$3="Male",B5*0.407+Settings!$C$10*0.267-19.2,B5*0.252+Settings!$C$10*0.473-48.3),IF(Settings!$F$3="Male",B5*0.45359237*0.407+Settings!$C$10*2.54*0.267-19.2,B5*0.45359237*0.252+Settings!$C$10*2.54*0.473-48.3))) -> 75.1391 | I5: =IF(OR(B5="",H5=0),0,B5-H5) -> 43.1609 | J5: =IF(I5=0,0,(I5*100)/B5) -> 36.48427726 | K5: =B5/(Summary!$D$6^2/10000) -> 39.52688028 | L5: =Summary!$F$7 -> 85 | M5: 146 | N5: 89 | O5: 82
A6: 2017-02-08 | B6: 115.7 | H6: =IF(B6="",0,IF(Settings!$F$5="Metric",IF(Settings!$F$3="Male",B6*0.407+Settings!$C$10*0.267-19.2,B6*0.252+Settings!$C$10*0.473-48.3),IF(Settings!$F$3="Male",B6*0.45359237*0.407+Settings!$C$10*2.54*0.267-19.2,B6*0.45359237*0.252+Settings!$C$10*2.54*0.473-48.3))) -> 74.0809 | I6: =IF(OR(B6="",H6=0),0,B6-H6) -> 41.6191 | J6: =IF(I6=0,0,(I6*100)/B6) -> 35.97156439 | K6: =B6/(Summary!$D$6^2/10000) -> 38.65815764 | L6: =Summary!$F$7 -> 85

Sheet Settings
B1: Settings
B3: Name: | C3: Brian | E3: Sex: | F3: Male
B5: Date of Birth: | C5: 1969-10-14 | E5: Measurements: | F5: Metric
B7: Starting Measurements | E7: My Goal Measurements | G7: To Meet My Goal
B8: Date: | C8: 2016-08-13 | E8: 2017-06-01 | G8: =IF(OR(C8="",E8=""),"",E8-C8) -> 292
C9: Measurements
B10: =IF($F$5="Imperial","Height (inches):","Height (cm):") -> Height (cm): | C10: 173
B11: =IF($F$5="Imperial","Weight (pounds):","Weight (kg):") -> Weight (kg): | C11: 120.1 | E11: 85 | G11: =IF(C11="","",E11-C11) -> -35.1
B12: =IF($F$5="Imperial","Chest (inches):","Chest (cm):") -> Chest (cm): | C12: 110 | E12: 105 | G12: =IF(C12="","",E12-C12) -> -5
B13: =IF($F$5="Imperial","Waist (inches):","Waist (cm):") -> Waist (cm): | C13: 107 | E13: 97 | G13: -10
B14: =IF($F$5="Imperial","Hips (inches):","Hips (cm):") -> Hips (cm): | C14: 105 | E14: 102 | G14: -3
B15: =IF($F$5="Imperial","Neck (inches):","Neck (cm):") -> Neck (cm): | C15: 42 | E15: 36 | G15: -6
B16: =IF($F$5="Imperial","Thigh (inches):","Thigh (cm):") -> Thigh (cm): | C16: 55 | E16: 50 | G16: -5
C17: Blood Pressure
B18: Systolic (mmHg): | C18: 146 | E18: 115 | G18: -31
B19: Diastolic (mmHg): | C19: 89 | E19: 75 | G19: -14
B20: Pulse (beats/sec): | C20: 84 | E20: 65 | G20: -19

Sheet config (hidden)
B1: Configuration settings
G3: Dashboard Graph Data | AB3: =Data!M1 -> 146 | AC3: =Data!N1 -> 89
H4: Date | I4: Weight Loss Goal | J4: Actual Weight Loss | K4: Goal Weight (kg) | M4: =IF(Settings!$F$5="Metric","cm","inch") -> cm | N4: 18.5 | O4: 25 | P4: 30 | Q4: 40 | R4: 40+ | S4: My BMI | T4: BMI Label | V4: Blood Pressure | W4: Low | X4: Normal | Y4: PreHypertension | Z4: High Stage 1 | AA4: High Stage 2 | AB4: Hypertensive Crisis | AC4: My BP | AD4: BP Label
B5: Sex | D5: Time | G5: 0 | H5: =Settings!C8 -> 2016-08-13 | I5: =Settings!C11 -> 120.1 | J5: =Settings!C11 -> 120.1 | K5: =Settings!E11 -> 85 | M5: =IF(Settings!$F$5="Metric",140,55) -> 140 | N5: =IF(Settings!$F$5="Metric",N$4*$M5*$M5/10000,N$4*$M5*$M5/703) -> 36.26 | O5: =IF(Settings!$F$5="Metric",O$4*$M5*$M5/10000,O$4*$M5*$M5/703) -> 49 | P5: =IF(Settings!$F$5="Metric",P$4*$M5*$M5/10000,P$4*$M5*$M5/703) -> 58.8 | Q5: =IF(Settings!$F$5="Metric",Q$4*$M5*$M5/10000,Q$4*$M5*$M5/703) -> 78.4 | R5: =Q40+10 -> 186.4 | S5: =IF(AND(Settings!$C$10>=config!M5,Settings!$C$10<config!M6),Data!$B$1,NA()) ->  | T5: =IF(ISERROR(S5),NA(),"My current BMI: "&TEXT(Summary!$J$4,"0.0")) ->  | V5: 40 | W5: 90 | X5: 120 | Y5: 140 | Z5: 160 | AA5: 180 | AB5: 200 | AC5: =IF(AND($AC$3>=config!V5,$AC$3<config!V6),$AB$3,NA()) ->  | AD5: =IF(ISERROR(AC5),NA(),"My current BP: "&TEXT($AB$3,"0")&"/"&TEXT($AC$3,"0")) -> 
B6: Male | D6: days | G6: =G5+1 -> 1 | H6: =H5+1 -> 2016-08-14 | I6: =Settings!$C$11-((Settings!$C$11-Settings!$E$11)/(Settings!$E$8-Settings!$C$8)*$G6) -> 119.9797945 | J6: =VLOOKUP(H6,data[],2,FALSE) ->  | K6: =VLOOKUP(H6,data[],12,FALSE) ->  | M6: =IF(Settings!$F$5="Metric",M5+2,M5+1) -> 142 | N6: =IF(Settings!$F$5="Metric",N$4*$M6*$M6/10000,N$4*$M6*$M6/703) -> 37.3034 | O6: =IF(Settings!$F$5="Metric",O$4*$M6*$M6/10000,O$4*$M6*$M6/703) -> 50.41 | P6: =IF(Settings!$F$5="Metric",P$4*$M6*$M6/10000,P$4*$M6*$M6/703) -> 60.492 | Q6: =IF(Settings!$F$5="Metric",Q$4*$M6*$M6/10000,Q$4*$M6*$M6/703) -> 80.656 | R6: =R5 -> 186.4 | S6: =IF(AND(Settings!$C$10>=config!M6,Settings!$C$10<config!M7),Data!$B$1,NA()) ->  | T6: =IF(ISERROR(S6),NA(),"My current BMI: "&TEXT(Summary!$J$4,"0.0")) ->  | V6: =V5+1 -> 41 | W6: 90 | X6: 120 | Y6: 140 | Z6: 160 | AA6: 180 | AB6: 200 | AC6: =IF(AND($AC$3>=config!V6,$AC$3<config!V7),$AB$3,NA()) ->  | AD6: =IF(ISERROR(AC6),NA(),"My current BP: "&TEXT($AB$3,"0")&"/"&TEXT($AC$3,"0")) -> 
B7: Female | D7: weeks | G7: 2 | H7: 2016-08-15 | I7: =Settings!$C$11-((Settings!$C$11-Settings!$E$11)/(Settings!$E$8-Settings!$C$8)*$G7) -> 119.859589 | J7: =VLOOKUP(H7,data[],2,FALSE) ->  | K7: =VLOOKUP(H7,data[],12,FALSE) ->  | M7: =IF(Settings!$F$5="Metric",M6+2,M6+1) -> 144 | N7: =IF(Settings!$F$5="Metric",N$4*$M7*$M7/10000,N$4*$M7*$M7/703) -> 38.3616 | O7: =IF(Settings!$F$5="Metric",O$4*$M7*$M7/10000,O$4*$M7*$M7/703) -> 51.84 | P7: =IF(Settings!$F$5="Metric",P$4*$M7*$M7/10000,P$4*$M7*$M7/703) -> 62.208 | Q7: =IF(Settings!$F$5="Metric",Q$4*$M7*$M7/10000,Q$4*$M7*$M7/703) -> 82.944 | R7: =R6 -> 186.4 | S7: =IF(AND(Settings!$C$10>=config!M7,Settings!$C$10<config!M8),Data!$B$1,NA()) ->  | T7: =IF(ISERROR(S7),NA(),"My current BMI: "&TEXT(Summary!$J$4,"0.0")) ->  | V7: =V6+1 -> 42 | W7: 90 | X7: 120 | Y7: 140 | Z7: 160 | AA7: 180 | AB7: 200 | AC7: =IF(AND($AC$3>=config!V7,$AC$3<config!V8),$AB$3,NA()) -> 
G8: 3 | H8: 2016-08-16 | I8: =Settings!$C$11-((Settings!$C$11-Settings!$E$11)/(Settings!$E$8-Settings!$C$8)*$G8) -> 119.7393836 | J8: =VLOOKUP(H8,data[],2,FALSE) ->  | K8: =VLOOKUP(H8,data[],12,FALSE) ->  | M8: =IF(Settings!$F$5="Metric",M7+2,M7+1) -> 146 | N8: =IF(Settings!$F$5="Metric",N$4*$M8*$M8/10000,N$4*$M8*$M8/703) -> 39.4346 | O8: =IF(Settings!$F$5="Metric",O$4*$M8*$M8/10000,O$4*$M8*$M8/703) -> 53.29 | P8: =IF(Settings!$F$5="Metric",P$4*$M8*$M8/10000,P$4*$M8*$M8/703) -> 63.948 | Q8: =IF(Settings!$F$5="Metric",Q$4*$M8*$M8/10000,Q$4*$M8*$M8/703) -> 85.264 | R8: 186.4 | S8: =IF(AND(Settings!$C$10>=config!M8,Settings!$C$10<config!M9),Data!$B$1,NA()) ->  | T8: =IF(ISERROR(S8),NA(),"My current BMI: "&TEXT(Summary!$J$4,"0.0")) ->  | V8: 43 | W8: 90 | X8: 120 | Y8: 140 | Z8: 160 | AA8: 180 | AB8: 200 | AC8: =IF(AND($AC$3>=config!V8,$AC$3<config!V9),$AB$3,NA()) -> 
B9: Measurements | G9: 4 | H9: 2016-08-17 | I9: =Settings!$C$11-((Settings!$C$11-Settings!$E$11)/(Settings!$E$8-Settings!$C$8)*$G9) -> 119.6191781 | J9: =VLOOKUP(H9,data[],2,FALSE) ->  | K9: =VLOOKUP(H9,data[],12,FALSE) ->  | M9: =IF(Settings!$F$5="Metric",M8+2,M8+1) -> 148 | N9: =IF(Settings!$F$5="Metric",N$4*$M9*$M9/10000,N$4*$M9*$M9/703) -> 40.5224 | O9: =IF(Settings!$F$5="Metric",O$4*$M9*$M9/10000,O$4*$M9*$M9/703) -> 54.76 | P9: =IF(Settings!$F$5="Metric",P$4*$M9*$M9/10000,P$4*$M9*$M9/703) -> 65.712 | Q9: =IF(Settings!$F$5="Metric",Q$4*$M9*$M9/10000,Q$4*$M9*$M9/703) -> 87.616 | R9: 186.4 | S9: =IF(AND(Settings!$C$10>=config!M9,Settings!$C$10<config!M10),Data!$B$1,NA()) ->  | T9: =IF(ISERROR(S9),NA(),"My current BMI: "&TEXT(Summary!$J$4,"0.0")) ->  | V9: 44 | W9: 90 | X9: 120 | Y9: 140 | Z9: 160 | AA9: 180 | AB9: 200 | AC9: =IF(AND($AC$3>=config!V9,$AC$3<config!V10),$AB$3,NA()) -> 
B10: Metric | G10: 5 | H10: 2016-08-18 | I10: =Settings!$C$11-((Settings!$C$11-Settings!$E$11)/(Settings!$E$8-Settings!$C$8)*$G10) -> 119.4989726 | J10: =VLOOKUP(H10,data[],2,FALSE) ->  | K10: =VLOOKUP(H10,data[],12,FALSE) ->  | M10: =IF(Settings!$F$5="Metric",M9+2,M9+1) -> 150 | N10: =IF(Settings!$F$5="Metric",N$4*$M10*$M10/10000,N$4*$M10*$M10/703) -> 41.625 | O10: =IF(Settings!$F$5="Metric",O$4*$M10*$M10/10000,O$4*$M10*$M10/703) -> 56.25 | P10: =IF(Settings!$F$5="Metric",P$4*$M10*$M10/10000,P$4*$M10*$M10/703) -> 67.5 | Q10: =IF(Settings!$F$5="Metric",Q$4*$M10*$M10/10000,Q$4*$M10*$M10/703) -> 90 | R10: 186.4 | S10: =IF(AND(Settings!$C$10>=config!M10,Settings!$C$10<config!M11),Data!$B$1,NA()) ->  | T10: =IF(ISERROR(S10),NA(),"My current BMI: "&TEXT(Summary!$J$4,"0.0")) ->  | V10: 45 | W10: 90 | X10: 120 | Y10: 140 | Z10: 160 | AA10: 180 | AB10: 200 | AC10: =IF(AND($AC$3>=config!V10,$AC$3<config!V11),$AB$3,NA()) -> 
B11: Imperial | G11: 6 | H11: 2016-08-19 | I11: =Settings!$C$11-((Settings!$C$11-Settings!$E$11)/(Settings!$E$8-Settings!$C$8)*$G11) -> 119.3787671 | J11: =VLOOKUP(H11,data[],2,FALSE) ->  | K11: =VLOOKUP(H11,data[],12,FALSE) ->  | M11: =IF(Settings!$F$5="Metric",M10+2,M10+1) -> 152 | N11: =IF(Settings!$F$5="Metric",N$4*$M11*$M11/10000,N$4*$M11*$M11/703) -> 42.7424 | O11: =IF(Settings!$F$5="Metric",O$4*$M11*$M11/10000,O$4*$M11*$M11/703) -> 57.76 | P11: =IF(Settings!$F$5="Metric",P$4*$M11*$M11/10000,P$4*$M11*$M11/703) -> 69.312 | Q11: =IF(Settings!$F$5="Metric",Q$4*$M11*$M11/10000,Q$4*$M11*$M11/703) -> 92.416 | R11: 186.4 | S11: =IF(AND(Settings!$C$10>=config!M11,Settings!$C$10<config!M12),Data!$B$1,NA()) ->  | T11: =IF(ISERROR(S11),NA(),"My current BMI: "&TEXT(Summary!$J$4,"0.0")) ->  | V11: 46 | W11: 90 | X11: 120 | Y11: 140 | Z11: 160 | AA11: 180 | AB11: 200 | AC11: =IF(AND($AC$3>=config!V11,$AC$3<config!V12),$AB$3,NA()) -> 
G12: 7 | H12: 2016-08-20 | I12: =Settings!$C$11-((Settings!$C$11-Settings!$E$11)/(Settings!$E$8-Settings!$C$8)*$G12) -> 119.2585616 | J12: =VLOOKUP(H12,data[],2,FALSE) ->  | K12: =VLOOKUP(H12,data[],12,FALSE) ->  | M12: =IF(Settings!$F$5="Metric",M11+2,M11+1) -> 154 | N12: =IF(Settings!$F$5="Metric",N$4*$M12*$M12/10000,N$4*$M12*$M12/703) -> 43.8746 | O12: =IF(Settings!$F$5="Metric",O$4*$M12*$M12/10000,O$4*$M12*$M12/703) -> 59.29 | P12: =IF(Settings!$F$5="Metric",P$4*$M12*$M12/10000,P$4*$M12*$M12/703) -> 71.148 | Q12: =IF(Settings!$F$5="Metric",Q$4*$M12*$M12/10000,Q$4*$M12*$M12/703) -> 94.864 | R12: 186.4 | S12: =IF(AND(Settings!$C$10>=config!M12,Settings!$C$10<config!M13),Data!$B$1,NA()) ->  | T12: =IF(ISERROR(S12),NA(),"My current BMI: "&TEXT(Summary!$J$4,"0.0")) ->  | V12: 47 | W12: 90 | X12: 120 | Y12: 140 | Z12: 160 | AA12: 180 | AB12: 200 | AC12: =IF(AND($AC$3>=config!V12,$AC$3<config!V13),$AB$3,NA()) -> 
G13: 8 | H13: 2016-08-21 | I13: =Settings!$C$11-((Settings!$C$11-Settings!$E$11)/(Settings!$E$8-Settings!$C$8)*$G13) -> 119.1383562 | J13: =VLOOKUP(H13,data[],2,FALSE) ->  | K13: =VLOOKUP(H13,data[],12,FALSE) ->  | M13: =IF(Settings!$F$5="Metric",M12+2,M12+1) -> 156 | N13: =IF(Settings!$F$5="Metric",N$4*$M13*$M13/10000,N$4*$M13*$M13/703) -> 45.0216 | O13: =IF(Settings!$F$5="Metric",O$4*$M13*$M13/10000,O$4*$M13*$M13/703) -> 60.84 | P13: =IF(Settings!$F$5="Metric",P$4*$M13*$M13/10000,P$4*$M13*$M13/703) -> 73.008 | Q13: =IF(Settings!$F$5="Metric",Q$4*$M13*$M13/10000,Q$4*$M13*$M13/703) -> 97.344 | R13: 186.4 | S13: =IF(AND(Settings!$C$10>=config!M13,Settings!$C$10<config!M14),Data!$B$1,NA()) ->  | T13: =IF(ISERROR(S13),NA(),"My current BMI: "&TEXT(Summary!$J$4,"0.0")) ->  | V13: 48 | W13: 90 | X13: 120 | Y13: 140 | Z13: 160 | AA13: 180 | AB13: 200 | AC13: =IF(AND($AC$3>=config!V13,$AC$3<config!V14),$AB$3,NA()) -> 
G14: 9 | H14: 2016-08-22 | I14: =Settings!$C$11-((Settings!$C$11-Settings!$E$11)/(Settings!$E$8-Settings!$C$8)*$G14) -> 119.0181507 | J14: =VLOOKUP(H14,data[],2,FALSE) ->  | K14: =VLOOKUP(H14,data[],12,FALSE) ->  | M14: =IF(Settings!$F$5="Metric",M13+2,M13+1) -> 158 | N14: =IF(Settings!$F$5="Metric",N$4*$M14*$M14/10000,N$4*$M14*$M14/703) -> 46.1834 | O14: =IF(Settings!$F$5="Metric",O$4*$M14*$M14/10000,O$4*$M14*$M14/703) -> 62.41 | P14: =IF(Settings!$F$5="Metric",P$4*$M14*$M14/10000,P$4*$M14*$M14/703) -> 74.892 | Q14: =IF(Settings!$F$5="Metric",Q$4*$M14*$M14/10000,Q$4*$M14*$M14/703) -> 99.856 | R14: 186.4 | S14: =IF(AND(Settings!$C$10>=config!M14,Settings!$C$10<config!M15),Data!$B$1,NA()) ->  | T14: =IF(ISERROR(S14),NA(),"My current BMI: "&TEXT(Summary!$J$4,"0.0")) ->  | V14: 49 | W14: 90 | X14: 120 | Y14: 140 | Z14: 160 | AA14: 180 | AB14: 200 | AC14: =IF(AND($AC$3>=config!V14,$AC$3<config!V15),$AB$3,NA()) -> 
G15: 10 | H15: 2016-08-23 | I15: =Settings!$C$11-((Settings!$C$11-Settings!$E$11)/(Settings!$E$8-Settings!$C$8)*$G15) -> 118.8979452 | J15: =VLOOKUP(H15,data[],2,FALSE) ->  | K15: =VLOOKUP(H15,data[],12,FALSE) ->  | M15: =IF(Settings!$F$5="Metric",M14+2,M14+1) -> 160 | N15: =IF(Settings!$F$5="Metric",N$4*$M15*$M15/10000,N$4*$M15*$M15/703) -> 47.36 | O15: =IF(Settings!$F$5="Metric",O$4*$M15*$M15/10000,O$4*$M15*$M15/703) -> 64 | P15: =IF(Settings!$F$5="Metric",P$4*$M15*$M15/10000,P$4*$M15*$M15/703) -> 76.8 | Q15: =IF(Settings!$F$5="Metric",Q$4*$M15*$M15/10000,Q$4*$M15*$M15/703) -> 102.4 | R15: 186.4 | S15: =IF(AND(Settings!$C$10>=config!M15,Settings!$C$10<config!M16),Data!$B$1,NA()) ->  | T15: =IF(ISERROR(S15),NA(),"My current BMI: "&TEXT(Summary!$J$4,"0.0")) ->  | V15: 50 | W15: 90 | X15: 120 | Y15: 140 | Z15: 160 | AA15: 180 | AB15: 200 | AC15: =IF(AND($AC$3>=config!V15,$AC$3<config!V16),$AB$3,NA()) -> 
G16: 11 | H16: 2016-08-24 | I16: =Settings!$C$11-((Settings!$C$11-Settings!$E$11)/(Settings!$E$8-Settings!$C$8)*$G16) -> 118.7777397 | J16: =VLOOKUP(H16,data[],2,FALSE) ->  | K16: =VLOOKUP(H16,data[],12,FALSE) ->  | M16: =IF(Settings!$F$5="Metric",M15+2,M15+1) -> 162 | N16: =IF(Settings!$F$5="Metric",N$4*$M16*$M16/10000,N$4*$M16*$M16/703) -> 48.5514 | O16: =IF(Settings!$F$5="Metric",O$4*$M16*$M16/10000,O$4*$M16*$M16/703) -> 65.61 | P16: =IF(Settings!$F$5="Metric",P$4*$M16*$M16/10000,P$4*$M16*$M16/703) -> 78.732 | Q16: =IF(Settings!$F$5="Metric",Q$4*$M16*$M16/10000,Q$4*$M16*$M16/703) -> 104.976 | R16: 186.4 | S16: =IF(AND(Settings!$C$10>=config!M16,Settings!$C$10<config!M17),Data!$B$1,NA()) ->  | T16: =IF(ISERROR(S16),NA(),"My current BMI: "&TEXT(Summary!$J$4,"0.0")) ->  | V16: 51 | W16: 90 | X16: 120 | Y16: 140 | Z16: 160 | AA16: 180 | AB16: 200 | AC16: =IF(AND($AC$3>=config!V16,$AC$3<config!V17),$AB$3,NA()) -> 
G17: 12 | H17: 2016-08-25 | I17: =Settings!$C$11-((Settings!$C$11-Settings!$E$11)/(Settings!$E$8-Settings!$C$8)*$G17) -> 118.6575342 | J17: =VLOOKUP(H17,data[],2,FALSE) ->  | K17: =VLOOKUP(H17,data[],12,FALSE) ->  | M17: =IF(Settings!$F$5="Metric",M16+2,M16+1) -> 164 | N17: =IF(Settings!$F$5="Metric",N$4*$M17*$M17/10000,N$4*$M17*$M17/703) -> 49.7576 | O17: =IF(Settings!$F$5="Metric",O$4*$M17*$M17/10000,O$4*$M17*$M17/703) -> 67.24 | P17: =IF(Settings!$F$5="Metric",P$4*$M17*$M17/10000,P$4*$M17*$M17/703) -> 80.688 | Q17: =IF(Settings!$F$5="Metric",Q$4*$M17*$M17/10000,Q$4*$M17*$M17/703) -> 107.584 | R17: 186.4 | S17: =IF(AND(Settings!$C$10>=config!M17,Settings!$C$10<config!M18),Data!$B$1,NA()) ->  | T17: =IF(ISERROR(S17),NA(),"My current BMI: "&TEXT(Summary!$J$4,"0.0")) ->  | V17: 52 | W17: 90 | X17: 120 | Y17: 140 | Z17: 160 | AA17: 180 | AB17: 200 | AC17: =IF(AND($AC$3>=config!V17,$AC$3<config!V18),$AB$3,NA()) -> 
G18: 13 | H18: 2016-08-26 | I18: =Settings!$C$11-((Settings!$C$11-Settings!$E$11)/(Settings!$E$8-Settings!$C$8)*$G18) -> 118.5373288 | J18: =VLOOKUP(H18,data[],2,FALSE) ->  | K18: =VLOOKUP(H18,data[],12,FALSE) ->  | M18: =IF(Settings!$F$5="Metric",M17+2,M17+1) -> 166 | N18: =IF(Settings!$F$5="Metric",N$4*$M18*$M18/10000,N$4*$M18*$M18/703) -> 50.9786 | O18: =IF(Settings!$F$5="Metric",O$4*$M18*$M18/10000,O$4*$M18*$M18/703) -> 68.89 | P18: =IF(Settings!$F$5="Metric",P$4*$M18*$M18/10000,P$4*$M18*$M18/703) -> 82.668 | Q18: =IF(Settings!$F$5="Metric",Q$4*$M18*$M18/10000,Q$4*$M18*$M18/703) -> 110.224 | R18: 186.4 | S18: =IF(AND(Settings!$C$10>=config!M18,Settings!$C$10<config!M19),Data!$B$1,NA()) ->  | T18: =IF(ISERROR(S18),NA(),"My current BMI: "&TEXT(Summary!$J$4,"0.0")) ->  | V18: 53 | W18: 90 | X18: 120 | Y18: 140 | Z18: 160 | AA18: 180 | AB18: 200 | AC18: =IF(AND($AC$3>=config!V18,$AC$3<config!V19),$AB$3,NA()) -> 
G19: 14 | H19: 2016-08-27 | I19: =Settings!$C$11-((Settings!$C$11-Settings!$E$11)/(Settings!$E$8-Settings!$C$8)*$G19) -> 118.4171233 | J19: =VLOOKUP(H19,data[],2,FALSE) ->  | K19: =VLOOKUP(H19,data[],12,FALSE) ->  | M19: =IF(Settings!$F$5="Metric",M18+2,M18+1) -> 168 | N19: =IF(Settings!$F$5="Metric",N$4*$M19*$M19/10000,N$4*$M19*$M19/703) -> 52.2144 | O19: =IF(Settings!$F$5="Metric",O$4*$M19*$M19/10000,O$4*$M19*$M19/703) -> 70.56 | P19: =IF(Settings!$F$5="Metric",P$4*$M19*$M19/10000,P$4*$M19*$M19/703) -> 84.672 | Q19: =IF(Settings!$F$5="Metric",Q$4*$M19*$M19/10000,Q$4*$M19*$M19/703) -> 112.896 | R19: 186.4 | S19: =IF(AND(Settings!$C$10>=config!M19,Settings!$C$10<config!M20),Data!$B$1,NA()) ->  | T19: =IF(ISERROR(S19),NA(),"My current BMI: "&TEXT(Summary!$J$4,"0.0")) ->  | V19: 54 | W19: 90 | X19: 120 | Y19: 140 | Z19: 160 | AA19: 180 | AB19: 200 | AC19: =IF(AND($AC$3>=config!V19,$AC$3<config!V20),$AB$3,NA()) -> 
G20: 15 | H20: 2016-08-28 | I20: =Settings!$C$11-((Settings!$C$11-Settings!$E$11)/(Settings!$E$8-Settings!$C$8)*$G20) -> 118.2969178 | J20: =VLOOKUP(H20,data[],2,FALSE) ->  | K20: =VLOOKUP(H20,data[],12,FALSE) ->  | M20: =IF(Settings!$F$5="Metric",M19+2,M19+1) -> 170 | N20: =IF(Settings!$F$5="Metric",N$4*$M20*$M20/10000,N$4*$M20*$M20/703) -> 53.465 | O20: =IF(Settings!$F$5="Metric",O$4*$M20*$M20/10000,O$4*$M20*$M20/703) -> 72.25 | P20: =IF(Settings!$F$5="Metric",P$4*$M20*$M20/10000,P$4*$M20*$M20/703) -> 86.7 | Q20: =IF(Settings!$F$5="Metric",Q$4*$M20*$M20/10000,Q$4*$M20*$M20/703) -> 115.6 | R20: 186.4 | S20: =IF(AND(Settings!$C$10>=config!M20,Settings!$C$10<config!M21),Data!$B$1,NA()) ->  | T20: =IF(ISERROR(S20),NA(),"My current BMI: "&TEXT(Summary!$J$4,"0.0")) ->  | V20: 55 | W20: 90 | X20: 120 | Y20: 140 | Z20: 160 | AA20: 180 | AB20: 200 | AC20: =IF(AND($AC$3>=config!V20,$AC$3<config!V21),$AB$3,NA()) -> 
G21: 16 | H21: 2016-08-29 | I21: =Settings!$C$11-((Settings!$C$11-Settings!$E$11)/(Settings!$E$8-Settings!$C$8)*$G21) -> 118.1767123 | J21: =VLOOKUP(H21,data[],2,FALSE) ->  | K21: =VLOOKUP(H21,data[],12,FALSE) ->  | M21: =IF(Settings!$F$5="Metric",M20+2,M20+1) -> 172 | N21: =IF(Settings!$F$5="Metric",N$4*$M21*$M21/10000,N$4*$M21*$M21/703) -> 54.7304 | O21: =IF(Settings!$F$5="Metric",O$4*$M21*$M21/10000,O$4*$M21*$M21/703) -> 73.96 | P21: =IF(Settings!$F$5="Metric",P$4*$M21*$M21/10000,P$4*$M21*$M21/703) -> 88.752 | Q21: =IF(Settings!$F$5="Metric",Q$4*$M21*$M21/10000,Q$4*$M21*$M21/703) -> 118.336 | R21: 186.4 | S21: =IF(AND(Settings!$C$10>=config!M21,Settings!$C$10<config!M22),Data!$B$1,NA()) -> 115.7 | T21: =IF(ISERROR(S21),NA(),"My current BMI: "&TEXT(Summary!$J$4,"0.0")) -> My current BMI: 38.7 | V21: 56 | W21: 90 | X21: 120 | Y21: 140 | Z21: 160 | AA21: 180 | AB21: 200 | AC21: =IF(AND($AC$3>=config!V21,$AC$3<config!V22),$AB$3,NA()) -> 
G22: 17 | H22: 2016-08-30 | I22: =Settings!$C$11-((Settings!$C$11-Settings!$E$11)/(Settings!$E$8-Settings!$C$8)*$G22) -> 118.0565068 | J22: =VLOOKUP(H22,data[],2,FALSE) ->  | K22: =VLOOKUP(H22,data[],12,FALSE) ->  | M22: =IF(Settings!$F$5="Metric",M21+2,M21+1) -> 174 | N22: =IF(Settings!$F$5="Metric",N$4*$M22*$M22/10000,N$4*$M22*$M22/703) -> 56.0106 | O22: =IF(Settings!$F$5="Metric",O$4*$M22*$M22/10000,O$4*$M22*$M22/703) -> 75.69 | P22: =IF(Settings!$F$5="Metric",P$4*$M22*$M22/10000,P$4*$M22*$M22/703) -> 90.828 | Q22: =IF(Settings!$F$5="Metric",Q$4*$M22*$M22/10000,Q$4*$M22*$M22/703) -> 121.104 | R22: 186.4 | S22: =IF(AND(Settings!$C$10>=config!M22,Settings!$C$10<config!M23),Data!$B$1,NA()) ->  | T22: =IF(ISERROR(S22),NA(),"My current BMI: "&TEXT(Summary!$J$4,"0.0")) ->  | V22: 57 | W22: 90 | X22: 120 | Y22: 140 | Z22: 160 | AA22: 180 | AB22: 200 | AC22: =IF(AND($AC$3>=config!V22,$AC$3<config!V23),$AB$3,NA()) -> 
G23: 18 | H23: 2016-08-31 | I23: =Settings!$C$11-((Settings!$C$11-Settings!$E$11)/(Settings!$E$8-Settings!$C$8)*$G23) -> 117.9363014 | J23: =VLOOKUP(H23,data[],2,FALSE) ->  | K23: =VLOOKUP(H23,data[],12,FALSE) ->  | M23: =IF(Settings!$F$5="Metric",M22+2,M22+1) -> 176 | N23: =IF(Settings!$F$5="Metric",N$4*$M23*$M23/10000,N$4*$M23*$M23/703) -> 57.3056 | O23: =IF(Settings!$F$5="Metric",O$4*$M23*$M23/10000,O$4*$M23*$M23/703) -> 77.44 | P23: =IF(Settings!$F$5="Metric",P$4*$M23*$M23/10000,P$4*$M23*$M23/703) -> 92.928 | Q23: =IF(Settings!$F$5="Metric",Q$4*$M23*$M23/10000,Q$4*$M23*$M23/703) -> 123.904 | R23: 186.4 | S23: =IF(AND(Settings!$C$10>=config!M23,Settings!$C$10<config!M24),Data!$B$1,NA()) ->  | T23: =IF(ISERROR(S23),NA(),"My current BMI: "&TEXT(Summary!$J$4,"0.0")) ->  | V23: 58 | W23: 90 | X23: 120 | Y23: 140 | Z23: 160 | AA23: 180 | AB23: 200 | AC23: =IF(AND($AC$3>=config!V23,$AC$3<config!V24),$AB$3,NA()) -> 
G24: 19 | H24: 2016-09-01 | I24: =Settings!$C$11-((Settings!$C$11-Settings!$E$11)/(Settings!$E$8-Settings!$C$8)*$G24) -> 117.8160959 | J24: =VLOOKUP(H24,data[],2,FALSE) ->  | K24: =VLOOKUP(H24,data[],12,FALSE) ->  | M24: =IF(Settings!$F$5="Metric",M23+2,M23+1) -> 178 | N24: =IF(Settings!$F$5="Metric",N$4*$M24*$M24/10000,N$4*$M24*$M24/703) -> 58.6154 | O24: =IF(Settings!$F$5="Metric",O$4*$M24*$M24/10000,O$4*$M24*$M24/703) -> 79.21 | P24: =IF(Settings!$F$5="Metric",P$4*$M24*$M24/10000,P$4*$M24*$M24/703) -> 95.052 | Q24: =IF(Settings!$F$5="Metric",Q$4*$M24*$M24/10000,Q$4*$M24*$M24/703) -> 126.736 | R24: 186.4 | S24: =IF(AND(Settings!$C$10>=config!M24,Settings!$C$10<config!M25),Data!$B$1,NA()) ->  | T24: =IF(ISERROR(S24),NA(),"My current BMI: "&TEXT(Summary!$J$4,"0.0")) ->  | V24: 59 | W24: 90 | X24: 120 | Y24: 140 | Z24: 160 | AA24: 180 | AB24: 200 | AC24: =IF(AND($AC$3>=config!V24,$AC$3<config!V25),$AB$3,NA()) -> 
G25: 20 | H25: 2016-09-02 | I25: =Settings!$C$11-((Settings!$C$11-Settings!$E$11)/(Settings!$E$8-Settings!$C$8)*$G25) -> 117.6958904 | J25: =VLOOKUP(H25,data[],2,FALSE) -> 118.3 | K25: =VLOOKUP(H25,data[],12,FALSE) -> 85 | M25: =IF(Settings!$F$5="Metric",M24+2,M24+1) -> 180 | N25: =IF(Settings!$F$5="Metric",N$4*$M25*$M25/10000,N$4*$M25*$M25/703) -> 59.94 | O25: =IF(Settings!$F$5="Metric",O$4*$M25*$M25/10000,O$4*$M25*$M25/703) -> 81 | P25: =IF(Settings!$F$5="Metric",P$4*$M25*$M25/10000,P$4*$M25*$M25/703) -> 97.2 | Q25: =IF(Settings!$F$5="Metric",Q$4*$M25*$M25/10000,Q$4*$M25*$M25/703) -> 129.6 | R25: 186.4 | S25: =IF(AND(Settings!$C$10>=config!M25,Settings!$C$10<config!M26),Data!$B$1,NA()) ->  | T25: =IF(ISERROR(S25),NA(),"My current BMI: "&TEXT(Summary!$J$4,"0.0")) ->  | V25: 60 | W25: =NA() ->  | X25: 120 | Y25: 140 | Z25: 160 | AA25: 180 | AB25: 200 | AC25: =IF(AND($AC$3>=config!V25,$AC$3<config!V26),$AB$3,NA()) -> 
G26: 21 | H26: 2016-09-03 | I26: =Settings!$C$11-((Settings!$C$11-Settings!$E$11)/(Settings!$E$8-Settings!$C$8)*$G26) -> 117.5756849 | J26: =VLOOKUP(H26,data[],2,FALSE) ->  | K26: =VLOOKUP(H26,data[],12,FALSE) ->  | M26: =IF(Settings!$F$5="Metric",M25+2,M25+1) -> 182 | N26: =IF(Settings!$F$5="Metric",N$4*$M26*$M26/10000,N$4*$M26*$M26/703) -> 61.2794 | O26: =IF(Settings!$F$5="Metric",O$4*$M26*$M26/10000,O$4*$M26*$M26/703) -> 82.81 | P26: =IF(Settings!$F$5="Metric",P$4*$M26*$M26/10000,P$4*$M26*$M26/703) -> 99.372 | Q26: =IF(Settings!$F$5="Metric",Q$4*$M26*$M26/10000,Q$4*$M26*$M26/703) -> 132.496 | R26: 186.4 | S26: =IF(AND(Settings!$C$10>=config!M26,Settings!$C$10<config!M27),Data!$B$1,NA()) ->  | T26: =IF(ISERROR(S26),NA(),"My current BMI: "&TEXT(Summary!$J$4,"0.0")) ->  | V26: 61 | W26: =NA() ->  | X26: 120 | Y26: 140 | Z26: 160 | AA26: 180 | AB26: 200 | AC26: =IF(AND($AC$3>=config!V26,$AC$3<config!V27),$AB$3,NA()) -> 
G27: 22 | H27: 2016-09-04 | I27: =Settings!$C$11-((Settings!$C$11-Settings!$E$11)/(Settings!$E$8-Settings!$C$8)*$G27) -> 117.4554795 | J27: =VLOOKUP(H27,data[],2,FALSE) ->  | K27: =VLOOKUP(H27,data[],12,FALSE) ->  | M27: =IF(Settings!$F$5="Metric",M26+2,M26+1) -> 184 | N27: =IF(Settings!$F$5="Metric",N$4*$M27*$M27/10000,N$4*$M27*$M27/703) -> 62.6336 | O27: =IF(Settings!$F$5="Metric",O$4*$M27*$M27/10000,O$4*$M27*$M27/703) -> 84.64 | P27: =IF(Settings!$F$5="Metric",P$4*$M27*$M27/10000,P$4*$M27*$M27/703) -> 101.568 | Q27: =IF(Settings!$F$5="Metric",Q$4*$M27*$M27/10000,Q$4*$M27*$M27/703) -> 135.424 | R27: 186.4 | S27: =IF(AND(Settings!$C$10>=config!M27,Settings!$C$10<config!M28),Data!$B$1,NA()) ->  | T27: =IF(ISERROR(S27),NA(),"My current BMI: "&TEXT(Summary!$J$4,"0.0")) ->  | V27: 62 | W27: =NA() ->  | X27: 120 | Y27: 140 | Z27: 160 | AA27: 180 | AB27: 200 | AC27: =IF(AND($AC$3>=config!V27,$AC$3<config!V28),$AB$3,NA()) -> 
G28: 23 | H28: 2016-09-05 | I28: =Settings!$C$11-((Settings!$C$11-Settings!$E$11)/(Settings!$E$8-Settings!$C$8)*$G28) -> 117.335274 | J28: =VLOOKUP(H28,data[],2,FALSE) ->  | K28: =VLOOKUP(H28,data[],12,FALSE) ->  | M28: =IF(Settings!$F$5="Metric",M27+2,M27+1) -> 186 | N28: =IF(Settings!$F$5="Metric",N$4*$M28*$M28/10000,N$4*$M28*$M28/703) -> 64.0026 | O28: =IF(Settings!$F$5="Metric",O$4*$M28*$M28/10000,O$4*$M28*$M28/703) -> 86.49 | P28: =IF(Settings!$F$5="Metric",P$4*$M28*$M28/10000,P$4*$M28*$M28/703) -> 103.788 | Q28: =IF(Settings!$F$5="Metric",Q$4*$M28*$M28/10000,Q$4*$M28*$M28/703) -> 138.384 | R28: 186.4 | S28: =IF(AND(Settings!$C$10>=config!M28,Settings!$C$10<config!M29),Data!$B$1,NA()) ->  | T28: =IF(ISERROR(S28),NA(),"My current BMI: "&TEXT(Summary!$J$4,"0.0")) ->  | V28: 63 | W28: =NA() ->  | X28: 120 | Y28: 140 | Z28: 160 | AA28: 180 | AB28: 200 | AC28: =IF(AND($AC$3>=config!V28,$AC$3<config!V29),$AB$3,NA()) -> 
G29: 24 | H29: 2016-09-06 | I29: =Settings!$C$11-((Settings!$C$11-Settings!$E$11)/(Settings!$E$8-Settings!$C$8)*$G29) -> 117.2150685 | J29: =VLOOKUP(H29,data[],2,FALSE) ->  | K29: =VLOOKUP(H29,data[],12,FALSE) ->  | M29: =IF(Settings!$F$5="Metric",M28+2,M28+1) -> 188 | N29: =IF(Settings!$F$5="Metric",N$4*$M29*$M29/10000,N$4*$M29*$M29/703) -> 65.3864 | O29: =IF(Settings!$F$5="Metric",O$4*$M29*$M29/10000,O$4*$M29*$M29/703) -> 88.36 | P29: =IF(Settings!$F$5="Metric",P$4*$M29*$M29/10000,P$4*$M29*$M29/703) -> 106.032 | Q29: =IF(Settings!$F$5="Metric",Q$4*$M29*$M29/10000,Q$4*$M29*$M29/703) -> 141.376 | R29: 186.4 | S29: =IF(AND(Settings!$C$10>=config!M29,Settings!$C$10<config!M30),Data!$B$1,NA()) ->  | T29: =IF(ISERROR(S29),NA(),"My current BMI: "&TEXT(Summary!$J$4,"0.0")) ->  | V29: 64 | W29: =NA() ->  | X29: 120 | Y29: 140 | Z29: 160 | AA29: 180 | AB29: 200 | AC29: =IF(AND($AC$3>=config!V29,$AC$3<config!V30),$AB$3,NA()) -> 
G30: 25 | H30: 2016-09-07 | I30: =Settings!$C$11-((Settings!$C$11-Settings!$E$11)/(Settings!$E$8-Settings!$C$8)*$G30) -> 117.094863 | J30: =VLOOKUP(H30,data[],2,FALSE) ->  | K30: =VLOOKUP(H30,data[],12,FALSE) ->  | M30: =IF(Settings!$F$5="Metric",M29+2,M29+1) -> 190 | N30: =IF(Settings!$F$5="Metric",N$4*$M30*$M30/10000,N$4*$M30*$M30/703) -> 66.785 | O30: =IF(Settings!$F$5="Metric",O$4*$M30*$M30/10000,O$4*$M30*$M30/703) -> 90.25 | P30: =IF(Settings!$F$5="Metric",P$4*$M30*$M30/10000,P$4*$M30*$M30/703) -> 108.3 | Q30: =IF(Settings!$F$5="Metric",Q$4*$M30*$M30/10000,Q$4*$M30*$M30/703) -> 144.4 | R30: 186.4 | S30: =IF(AND(Settings!$C$10>=config!M30,Settings!$C$10<config!M31),Data!$B$1,NA()) ->  | T30: =IF(ISERROR(S30),NA(),"My current BMI: "&TEXT(Summary!$J$4,"0.0")) ->  | V30: 65 | W30: =NA() ->  | X30: 120 | Y30: 140 | Z30: 160 | AA30: 180 | AB30: 200 | AC30: =IF(AND($AC$3>=config!V30,$AC$3<config!V31),$AB$3,NA()) -> 
G31: 26 | H31: 2016-09-08 | I31: =Settings!$C$11-((Settings!$C$11-Settings!$E$11)/(Settings!$E$8-Settings!$C$8)*$G31) -> 116.9746575 | J31: =VLOOKUP(H31,data[],2,FALSE) ->  | K31: =VLOOKUP(H31,data[],12,FALSE) ->  | M31: =IF(Settings!$F$5="Metric",M30+2,M30+1) -> 192 | N31: =IF(Settings!$F$5="Metric",N$4*$M31*$M31/10000,N$4*$M31*$M31/703) -> 68.1984 | O31: =IF(Settings!$F$5="Metric",O$4*$M31*$M31/10000,O$4*$M31*$M31/703) -> 92.16 | P31: =IF(Settings!$F$5="Metric",P$4*$M31*$M31/10000,P$4*$M31*$M31/703) -> 110.592 | Q31: =IF(Settings!$F$5="Metric",Q$4*$M31*$M31/10000,Q$4*$M31*$M31/703) -> 147.456 | R31: 186.4 | S31: =IF(AND(Settings!$C$10>=config!M31,Settings!$C$10<config!M32),Data!$B$1,NA()) ->  | T31: =IF(ISERROR(S31),NA(),"My current BMI: "&TEXT(Summary!$J$4,"0.0")) ->  | V31: 66 | W31: =NA() ->  | X31: 120 | Y31: 140 | Z31: 160 | AA31: 180 | AB31: 200 | AC31: =IF(AND($AC$3>=config!V31,$AC$3<config!V32),$AB$3,NA()) -> 
G32: 27 | H32: 2016-09-09 | I32: =Settings!$C$11-((Settings!$C$11-Settings!$E$11)/(Settings!$E$8-Settings!$C$8)*$G32) -> 116.8544521 | J32: =VLOOKUP(H32,data[],2,FALSE) ->  | K32: =VLOOKUP(H32,data[],12,FALSE) ->  | M32: =IF(Settings!$F$5="Metric",M31+2,M31+1) -> 194 | N32: =IF(Settings!$F$5="Metric",N$4*$M32*$M32/10000,N$4*$M32*$M32/703) -> 69.6266 | O32: =IF(Settings!$F$5="Metric",O$4*$M32*$M32/10000,O$4*$M32*$M32/703) -> 94.09 | P32: =IF(Settings!$F$5="Metric",P$4*$M32*$M32/10000,P$4*$M32*$M32/703) -> 112.908 | Q32: =IF(Settings!$F$5="Metric",Q$4*$M32*$M32/10000,Q$4*$M32*$M32/703) -> 150.544 | R32: 186.4 | S32: =IF(AND(Settings!$C$10>=config!M32,Settings!$C$10<config!M33),Data!$B$1,NA()) ->  | T32: =IF(ISERROR(S32),NA(),"My current BMI: "&TEXT(Summary!$J$4,"0.0")) ->  | V32: 67 | W32: =NA() ->  | X32: 120 | Y32: 140 | Z32: 160 | AA32: 180 | AB32: 200 | AC32: =IF(AND($AC$3>=config!V32,$AC$3<config!V33),$AB$3,NA()) -> 
G33: 28 | H33: 2016-09-10 | I33: =Settings!$C$11-((Settings!$C$11-Settings!$E$11)/(Settings!$E$8-Settings!$C$8)*$G33) -> 116.7342466 | J33: =VLOOKUP(H33,data[],2,FALSE) ->  | K33: =VLOOKUP(H33,data[],12,FALSE) ->  | M33: =IF(Settings!$F$5="Metric",M32+2,M32+1) -> 196 | N33: =IF(Settings!$F$5="Metric",N$4*$M33*$M33/10000,N$4*$M33*$M33/703) -> 71.0696 | O33: =IF(Settings!$F$5="Metric",O$4*$M33*$M33/10000,O$4*$M33*$M33/703) -> 96.04 | P33: =IF(Settings!$F$5="Metric",P$4*$M33*$M33/10000,P$4*$M33*$M33/703) -> 115.248 | Q33: =IF(Settings!$F$5="Metric",Q$4*$M33*$M33/10000,Q$4*$M33*$M33/703) -> 153.664 | R33: 186.4 | S33: =IF(AND(Settings!$C$10>=config!M33,Settings!$C$10<config!M34),Data!$B$1,NA()) ->  | T33: =IF(ISERROR(S33),NA(),"My current BMI: "&TEXT(Summary!$J$4,"0.0")) ->  | V33: 68 | W33: =NA() ->  | X33: 120 | Y33: 140 | Z33: 160 | AA33: 180 | AB33: 200 | AC33: =IF(AND($AC$3>=config!V33,$AC$3<config!V34),$AB$3,NA()) -> 
G34: 29 | H34: 2016-09-11 | I34: =Settings!$C$11-((Settings!$C$11-Settings!$E$11)/(Settings!$E$8-Settings!$C$8)*$G34) -> 116.6140411 | J34: =VLOOKUP(H34,data[],2,FALSE) ->  | K34: =VLOOKUP(H34,data[],12,FALSE) ->  | M34: =IF(Settings!$F$5="Metric",M33+2,M33+1) -> 198 | N34: =IF(Settings!$F$5="Metric",N$4*$M34*$M34/10000,N$4*$M34*$M34/703) -> 72.5274 | O34: =IF(Settings!$F$5="Metric",O$4*$M34*$M34/10000,O$4*$M34*$M34/703) -> 98.01 | P34: =IF(Settings!$F$5="Metric",P$4*$M34*$M34/10000,P$4*$M34*$M34/703) -> 117.612 | Q34: =IF(Settings!$F$5="Metric",Q$4*$M34*$M34/10000,Q$4*$M34*$M34/703) -> 156.816 | R34: 186.4 | S34: =IF(AND(Settings!$C$10>=config!M34,Settings!$C$10<config!M35),Data!$B$1,NA()) ->  | T34: =IF(ISERROR(S34),NA(),"My current BMI: "&TEXT(Summary!$J$4,"0.0")) ->  | V34: 69 | W34: =NA() ->  | X34: 120 | Y34: 140 | Z34: 160 | AA34: 180 | AB34: 200 | AC34: =IF(AND($AC$3>=config!V34,$AC$3<config!V35),$AB$3,NA()) -> 
G35: 30 | H35: 2016-09-12 | I35: =Settings!$C$11-((Settings!$C$11-Settings!$E$11)/(Settings!$E$8-Settings!$C$8)*$G35) -> 116.4938356 | J35: =VLOOKUP(H35,data[],2,FALSE) ->  | K35: =VLOOKUP(H35,data[],12,FALSE) ->  | M35: =IF(Settings!$F$5="Metric",M34+2,M34+1) -> 200 | N35: =IF(Settings!$F$5="Metric",N$4*$M35*$M35/10000,N$4*$M35*$M35/703) -> 74 | O35: =IF(Settings!$F$5="Metric",O$4*$M35*$M35/10000,O$4*$M35*$M35/703) -> 100 | P35: =IF(Settings!$F$5="Metric",P$4*$M35*$M35/10000,P$4*$M35*$M35/703) -> 120 | Q35: =IF(Settings!$F$5="Metric",Q$4*$M35*$M35/10000,Q$4*$M35*$M35/703) -> 160 | R35: 186.4 | S35: =IF(AND(Settings!$C$10>=config!M35,Settings!$C$10<config!M36),Data!$B$1,NA()) ->  | T35: =IF(ISERROR(S35),NA(),"My current BMI: "&TEXT(Summary!$J$4,"0.0")) ->  | V35: 70 | W35: =NA() ->  | X35: 120 | Y35: 140 | Z35: 160 | AA35: 180 | AB35: 200 | AC35: =IF(AND($AC$3>=config!V35,$AC$3<config!V36),$AB$3,NA()) -> 
G36: 31 | H36: 2016-09-13 | I36: =Settings!$C$11-((Settings!$C$11-Settings!$E$11)/(Settings!$E$8-Settings!$C$8)*$G36) -> 116.3736301 | J36: =VLOOKUP(H36,data[],2,FALSE) ->  | K36: =VLOOKUP(H36,data[],12,FALSE) ->  | M36: =IF(Settings!$F$5="Metric",M35+2,M35+1) -> 202 | N36: =IF(Settings!$F$5="Metric",N$4*$M36*$M36/10000,N$4*$M36*$M36/703) -> 75.4874 | O36: =IF(Settings!$F$5="Metric",O$4*$M36*$M36/10000,O$4*$M36*$M36/703) -> 102.01 | P36: =IF(Settings!$F$5="Metric",P$4*$M36*$M36/10000,P$4*$M36*$M36/703) -> 122.412 | Q36: =IF(Settings!$F$5="Metric",Q$4*$M36*$M36/10000,Q$4*$M36*$M36/703) -> 163.216 | R36: 186.4 | S36: =IF(AND(Settings!$C$10>=config!M36,Settings!$C$10<config!M37),Data!$B$1,NA()) ->  | T36: =IF(ISERROR(S36),NA(),"My current BMI: "&TEXT(Summary!$J$4,"0.0")) ->  | V36: =V35+1 -> 71 | W36: =NA() ->  | X36: 120 | Y36: 140 | Z36: 160 | AA36: 180 | AB36: 200 | AC36: =IF(AND($AC$3>=config!V36,$AC$3<config!V37),$AB$3,NA()) -> 
G37: 32 | H37: 2016-09-14 | I37: =Settings!$C$11-((Settings!$C$11-Settings!$E$11)/(Settings!$E$8-Settings!$C$8)*$G37) -> 116.2534247 | J37: =VLOOKUP(H37,data[],2,FALSE) ->  | K37: =VLOOKUP(H37,data[],12,FALSE) ->  | M37: =IF(Settings!$F$5="Metric",M36+2,M36+1) -> 204 | N37: =IF(Settings!$F$5="Metric",N$4*$M37*$M37/10000,N$4*$M37*$M37/703) -> 76.9896 | O37: =IF(Settings!$F$5="Metric",O$4*$M37*$M37/10000,O$4*$M37*$M37/703) -> 104.04 | P37: =IF(Settings!$F$5="Metric",P$4*$M37*$M37/10000,P$4*$M37*$M37/703) -> 124.848 | Q37: =IF(Settings!$F$5="Metric",Q$4*$M37*$M37/10000,Q$4*$M37*$M37/703) -> 166.464 | R37: 186.4 | S37: =IF(AND(Settings!$C$10>=config!M37,Settings!$C$10<config!M38),Data!$B$1,NA()) ->  | T37: =IF(ISERROR(S37),NA(),"My current BMI: "&TEXT(Summary!$J$4,"0.0")) ->  | V37: 72 | W37: =NA() ->  | X37: 120 | Y37: 140 | Z37: 160 | AA37: 180 | AB37: 200 | AC37: =IF(AND($AC$3>=config!V37,$AC$3<config!V38),$AB$3,NA()) -> 
G38: 33 | H38: 2016-09-15 | I38: =Settings!$C$11-((Settings!$C$11-Settings!$E$11)/(Settings!$E$8-Settings!$C$8)*$G38) -> 116.1332192 | J38: =VLOOKUP(H38,data[],2,FALSE) ->  | K38: =VLOOKUP(H38,data[],12,FALSE) ->  | M38: =IF(Settings!$F$5="Metric",M37+2,M37+1) -> 206 | N38: =IF(Settings!$F$5="Metric",N$4*$M38*$M38/10000,N$4*$M38*$M38/703) -> 78.5066 | O38: =IF(Settings!$F$5="Metric",O$4*$M38*$M38/10000,O$4*$M38*$M38/703) -> 106.09 | P38: =IF(Settings!$F$5="Metric",P$4*$M38*$M38/10000,P$4*$M38*$M38/703) -> 127.308 | Q38: =IF(Settings!$F$5="Metric",Q$4*$M38*$M38/10000,Q$4*$M38*$M38/703) -> 169.744 | R38: 186.4 | S38: =IF(AND(Settings!$C$10>=config!M38,Settings!$C$10<config!M39),Data!$B$1,NA()) ->  | T38: =IF(ISERROR(S38),NA(),"My current BMI: "&TEXT(Summary!$J$4,"0.0")) ->  | V38: 73 | W38: =NA() ->  | X38: 120 | Y38: 140 | Z38: 160 | AA38: 180 | AB38: 200 | AC38: =IF(AND($AC$3>=config!V38,$AC$3<config!V39),$AB$3,NA()) -> 
G39: 34 | H39: 2016-09-16 | I39: =Settings!$C$11-((Settings!$C$11-Settings!$E$11)/(Settings!$E$8-Settings!$C$8)*$G39) -> 116.0130137 | J39: =VLOOKUP(H39,data[],2,FALSE) ->  | K39: =VLOOKUP(H39,data[],12,FALSE) ->  | M39: =IF(Settings!$F$5="Metric",M38+2,M38+1) -> 208 | N39: =IF(Settings!$F$5="Metric",N$4*$M39*$M39/10000,N$4*$M39*$M39/703) -> 80.0384 | O39: =IF(Settings!$F$5="Metric",O$4*$M39*$M39/10000,O$4*$M39*$M39/703) -> 108.16 | P39: =IF(Settings!$F$5="Metric",P$4*$M39*$M39/10000,P$4*$M39*$M39/703) -> 129.792 | Q39: =IF(Settings!$F$5="Metric",Q$4*$M39*$M39/10000,Q$4*$M39*$M39/703) -> 173.056 | R39: 186.4 | S39: =IF(AND(Settings!$C$10>=config!M39,Settings!$C$10<config!M40),Data!$B$1,NA()) ->  | T39: =IF(ISERROR(S39),NA(),"My current BMI: "&TEXT(Summary!$J$4,"0.0")) ->  | V39: 74 | W39: =NA() ->  | X39: 120 | Y39: 140 | Z39: 160 | AA39: 180 | AB39: 200 | AC39: =IF(AND($AC$3>=config!V39,$AC$3<config!V40),$AB$3,NA()) -> 
G40: 35 | H40: 2016-09-17 | I40: =Settings!$C$11-((Settings!$C$11-Settings!$E$11)/(Settings!$E$8-Settings!$C$8)*$G40) -> 115.8928082 | J40: =VLOOKUP(H40,data[],2,FALSE) ->  | K40: =VLOOKUP(H40,data[],12,FALSE) ->  | M40: =IF(Settings!$F$5="Metric",M39+2,M39+1) -> 210 | N40: =IF(Settings!$F$5="Metric",N$4*$M40*$M40/10000,N$4*$M40*$M40/703) -> 81.585 | O40: =IF(Settings!$F$5="Metric",O$4*$M40*$M40/10000,O$4*$M40*$M40/703) -> 110.25 | P40: =IF(Settings!$F$5="Metric",P$4*$M40*$M40/10000,P$4*$M40*$M40/703) -> 132.3 | Q40: =IF(Settings!$F$5="Metric",Q$4*$M40*$M40/10000,Q$4*$M40*$M40/703) -> 176.4 | R40: 186.4 | S40: =IF(AND(Settings!$C$10>=config!M40,Settings!$C$10<config!M41),Data!$B$1,NA()) ->  | T40: =IF(ISERROR(S40),NA(),"My current BMI: "&TEXT(Summary!$J$4,"0.0")) ->  | V40: 75 | W40: =NA() ->  | X40: 120 | Y40: 140 | Z40: 160 | AA40: 180 | AB40: 200 | AC40: =IF(AND($AC$3>=config!V40,$AC$3<config!V41),$AB$3,NA()) -> 
G41: 36 | H41: 2016-09-18 | I41: =Settings!$C$11-((Settings!$C$11-Settings!$E$11)/(Settings!$E$8-Settings!$C$8)*$G41) -> 115.7726027 | J41: =VLOOKUP(H41,data[],2,FALSE) ->  | K41: =VLOOKUP(H41,data[],12,FALSE) ->  | V41: 76 | W41: =NA() ->  | X41: 120 | Y41: 140 | Z41: 160 | AA41: 180 | AB41: 200 | AC41: =IF(AND($AC$3>=config!V41,$AC$3<config!V42),$AB$3,NA()) -> 
G42: 37 | H42: 2016-09-19 | I42: =Settings!$C$11-((Settings!$C$11-Settings!$E$11)/(Settings!$E$8-Settings!$C$8)*$G42) -> 115.6523973 | J42: =VLOOKUP(H42,data[],2,FALSE) ->  | K42: =VLOOKUP(H42,data[],12,FALSE) ->  | V42: 77 | W42: =NA() ->  | X42: 120 | Y42: 140 | Z42: 160 | AA42: 180 | AB42: 200 | AC42: =IF(AND($AC$3>=config!V42,$AC$3<config!V43),$AB$3,NA()) -> 
G43: 38 | H43: 2016-09-20 | I43: =Settings!$C$11-((Settings!$C$11-Settings!$E$11)/(Settings!$E$8-Settings!$C$8)*$G43) -> 115.5321918 | J43: =VLOOKUP(H43,data[],2,FALSE) ->  | K43: =VLOOKUP(H43,data[],12,FALSE) ->  | V43: 78 | W43: =NA() ->  | X43: 120 | Y43: 140 | Z43: 160 | AA43: 180 | AB43: 200 | AC43: =IF(AND($AC$3>=config!V43,$AC$3<config!V44),$AB$3,NA()) -> 
G44: 39 | H44: 2016-09-21 | I44: =Settings!$C$11-((Settings!$C$11-Settings!$E$11)/(Settings!$E$8-Settings!$C$8)*$G44) -> 115.4119863 | J44: =VLOOKUP(H44,data[],2,FALSE) ->  | K44: =VLOOKUP(H44,data[],12,FALSE) ->  | V44: 79 | W44: =NA() ->  | X44: 120 | Y44: 140 | Z44: 160 | AA44: 180 | AB44: 200 | AC44: =IF(AND($AC$3>=config!V44,$AC$3<config!V45),$AB$3,NA()) -> 
G45: 40 | H45: 2016-09-22 | I45: =Settings!$C$11-((Settings!$C$11-Settings!$E$11)/(Settings!$E$8-Settings!$C$8)*$G45) -> 115.2917808 | J45: =VLOOKUP(H45,data[],2,FALSE) ->  | K45: =VLOOKUP(H45,data[],12,FALSE) ->  | V45: 80 | W45: =NA() ->  | X45: 120 | Y45: 140 | Z45: 160 | AA45: 180 | AB45: 200 | AC45: =IF(AND($AC$3>=config!V45,$AC$3<config!V46),$AB$3,NA()) -> 
G46: 41 | H46: 2016-09-23 | I46: =Settings!$C$11-((Settings!$C$11-Settings!$E$11)/(Settings!$E$8-Settings!$C$8)*$G46) -> 115.1715753 | J46: =VLOOKUP(H46,data[],2,FALSE) ->  | K46: =VLOOKUP(H46,data[],12,FALSE) ->  | V46: 81 | W46: =NA() ->  | X46: =NA() ->  | Y46: 140 | Z46: 160 | AA46: 180 | AB46: 200 | AC46: =IF(AND($AC$3>=config!V46,$AC$3<config!V47),$AB$3,NA()) -> 
G47: 42 | H47: 2016-09-24 | I47: =Settings!$C$11-((Settings!$C$11-Settings!$E$11)/(Settings!$E$8-Settings!$C$8)*$G47) -> 115.0513699 | J47: =VLOOKUP(H47,data[],2,FALSE) ->  | K47: =VLOOKUP(H47,data[],12,FALSE) ->  | V47: 82 | W47: =NA() ->  | X47: =NA() ->  | Y47: 140 | Z47: 160 | AA47: 180 | AB47: 200 | AC47: =IF(AND($AC$3>=config!V47,$AC$3<config!V48),$AB$3,NA()) -> 
G48: 43 | H48: 2016-09-25 | I48: =Settings!$C$11-((Settings!$C$11-Settings!$E$11)/(Settings!$E$8-Settings!$C$8)*$G48) -> 114.9311644 | J48: =VLOOKUP(H48,data[],2,FALSE) ->  | K48: =VLOOKUP(H48,data[],12,FALSE) ->  | V48: 83 | W48: =NA() ->  | X48: =NA() ->  | Y48: 140 | Z48: 160 | AA48: 180 | AB48: 200 | AC48: =IF(AND($AC$3>=config!V48,$AC$3<config!V49),$AB$3,NA()) -> 
G49: 44 | H49: 2016-09-26 | I49: =Settings!$C$11-((Settings!$C$11-Settings!$E$11)/(Settings!$E$8-Settings!$C$8)*$G49) -> 114.8109589 | J49: =VLOOKUP(H49,data[],2,FALSE) ->  | K49: =VLOOKUP(H49,data[],12,FALSE) ->  | V49: 84 | W49: =NA() ->  | X49: =NA() ->  | Y49: 140 | Z49: 160 | AA49: 180 | AB49: 200 | AC49: =IF(AND($AC$3>=config!V49,$AC$3<config!V50),$AB$3,NA()) -> 
G50: 45 | H50: 2016-09-27 | I50: =Settings!$C$11-((Settings!$C$11-Settings!$E$11)/(Settings!$E$8-Settings!$C$8)*$G50) -> 114.6907534 | J50: =VLOOKUP(H50,data[],2,FALSE) ->  | K50: =VLOOKUP(H50,data[],12,FALSE) ->  | V50: 85 | W50: =NA() ->  | X50: =NA() ->  | Y50: 140 | Z50: 160 | AA50: 180 | AB50: 200 | AC50: =IF(AND($AC$3>=config!V50,$AC$3<config!V51),$AB$3,NA()) -> 
G51: 46 | H51: 2016-09-28 | I51: =Settings!$C$11-((Settings!$C$11-Settings!$E$11)/(Settings!$E$8-Settings!$C$8)*$G51) -> 114.5705479 | J51: =VLOOKUP(H51,data[],2,FALSE) ->  | K51: =VLOOKUP(H51,data[],12,FALSE) ->  | V51: 86 | W51: =NA() ->  | X51: =NA() ->  | Y51: 140 | Z51: 160 | AA51: 180 | AB51: 200 | AC51: =IF(AND($AC$3>=config!V51,$AC$3<config!V52),$AB$3,NA()) -> 
G52: 47 | H52: 2016-09-29 | I52: =Settings!$C$11-((Settings!$C$11-Settings!$E$11)/(Settings!$E$8-Settings!$C$8)*$G52) -> 114.4503425 | J52: =VLOOKUP(H52,data[],2,FALSE) ->  | K52: =VLOOKUP(H52,data[],12,FALSE) ->  | V52: 87 | W52: =NA() ->  | X52: =NA() ->  | Y52: 140 | Z52: 160 | AA52: 180 | AB52: 200 | AC52: =IF(AND($AC$3>=config!V52,$AC$3<config!V53),$AB$3,NA()) -> 
G53: 48 | H53: 2016-09-30 | I53: =Settings!$C$11-((Settings!$C$11-Settings!$E$11)/(Settings!$E$8-Settings!$C$8)*$G53) -> 114.330137 | J53: =VLOOKUP(H53,data[],2,FALSE) ->  | K53: =VLOOKUP(H53,data[],12,FALSE) ->  | V53: 88 | W53: =NA() ->  | X53: =NA() ->  | Y53: 140 | Z53: 160 | AA53: 180 | AB53: 200 | AC53: =IF(AND($AC$3>=config!V53,$AC$3<config!V54),$AB$3,NA()) -> 
G54: 49 | H54: 2016-10-01 | I54: =Settings!$C$11-((Settings!$C$11-Settings!$E$11)/(Settings!$E$8-Settings!$C$8)*$G54) -> 114.2099315 | J54: =VLOOKUP(H54,data[],2,FALSE) ->  | K54: =VLOOKUP(H54,data[],12,FALSE) ->  | V54: 89 | W54: =NA() ->  | X54: =NA() ->  | Y54: 140 | Z54: 160 | AA54: 180 | AB54: 200 | AC54: =IF(AND($AC$3>=config!V54,$AC$3<config!V55),$AB$3,NA()) -> 146 | AD54: My current BP: 146/89
G55: 50 | H55: 2016-10-02 | I55: =Settings!$C$11-((Settings!$C$11-Settings!$E$11)/(Settings!$E$8-Settings!$C$8)*$G55) -> 114.089726 | J55: =VLOOKUP(H55,data[],2,FALSE) ->  | K55: =VLOOKUP(H55,data[],12,FALSE) ->  | V55: 90 | W55: =NA() ->  | X55: =NA() ->  | Y55: 140 | Z55: 160 | AA55: 180 | AB55: 200 | AC55: =IF(AND($AC$3>=config!V55,$AC$3<config!V56),$AB$3,NA()) -> 
G56: 51 | H56: 2016-10-03 | I56: =Settings!$C$11-((Settings!$C$11-Settings!$E$11)/(Settings!$E$8-Settings!$C$8)*$G56) -> 113.9695205 | J56: =VLOOKUP(H56,data[],2,FALSE) ->  | K56: =VLOOKUP(H56,data[],12,FALSE) ->  | V56: 91 | W56: =NA() ->  | X56: =NA() ->  | Y56: =NA() ->  | Z56: 160 | AA56: 180 | AB56: 200 | AC56: =IF(AND($AC$3>=config!V56,$AC$3<config!V57),$AB$3,NA()) -> 
G57: 52 | H57: 2016-10-04 | I57: =Settings!$C$11-((Settings!$C$11-Settings!$E$11)/(Settings!$E$8-Settings!$C$8)*$G57) -> 113.8493151 | J57: =VLOOKUP(H57,data[],2,FALSE) ->  | K57: =VLOOKUP(H57,data[],12,FALSE) ->  | V57: 92 | W57: =NA() ->  | X57: =NA() ->  | Y57: =NA() ->  | Z57: 160 | AA57: 180 | AB57: 200 | AC57: =IF(AND($AC$3>=config!V57,$AC$3<config!V58),$AB$3,NA()) -> 
G58: 53 | H58: 2016-10-05 | I58: =Settings!$C$11-((Settings!$C$11-Settings!$E$11)/(Settings!$E$8-Settings!$C$8)*$G58) -> 113.7291096 | J58: =VLOOKUP(H58,data[],2,FALSE) ->  | K58: =VLOOKUP(H58,data[],12,FALSE) ->  | V58: 93 | W58: =NA() ->  | X58: =NA() ->  | Y58: =NA() ->  | Z58: 160 | AA58: 180 | AB58: 200 | AC58: =IF(AND($AC$3>=config!V58,$AC$3<config!V59),$AB$3,NA()) -> 
G59: 54 | H59: 2016-10-06 | I59: =Settings!$C$11-((Settings!$C$11-Settings!$E$11)/(Settings!$E$8-Settings!$C$8)*$G59) -> 113.6089041 | J59: =VLOOKUP(H59,data[],2,FALSE) ->  | K59: =VLOOKUP(H59,data[],12,FALSE) ->  | V59: 94 | W59: =NA() ->  | X59: =NA() ->  | Y59: =NA() ->  | Z59: 160 | AA59: 180 | AB59: 200 | AC59: =IF(AND($AC$3>=config!V59,$AC$3<config!V60),$AB$3,NA()) -> 
G60: 55 | H60: 2016-10-07 | I60: =Settings!$C$11-((Settings!$C$11-Settings!$E$11)/(Settings!$E$8-Settings!$C$8)*$G60) -> 113.4886986 | J60: =VLOOKUP(H60,data[],2,FALSE) ->  | K60: =VLOOKUP(H60,data[],12,FALSE) ->  | V60: 95 | W60: =NA() ->  | X60: =NA() ->  | Y60: =NA() ->  | Z60: 160 | AA60: 180 | AB60: 200 | AC60: =IF(AND($AC$3>=config!V60,$AC$3<config!V61),$AB$3,NA()) -> 
G61: 56 | H61: 2016-10-08 | I61: =Settings!$C$11-((Settings!$C$11-Settings!$E$11)/(Settings!$E$8-Settings!$C$8)*$G61) -> 113.3684932 | J61: =VLOOKUP(H61,data[],2,FALSE) ->  | K61: =VLOOKUP(H61,data[],12,FALSE) ->  | V61: 96 | W61: =NA() ->  | X61: =NA() ->  | Y61: =NA() ->  | Z61: 160 | AA61: 180 | AB61: 200 | AC61: =IF(AND($AC$3>=config!V61,$AC$3<config!V62),$AB$3,NA()) -> 
G62: 57 | H62: 2016-10-09 | I62: =Settings!$C$11-((Settings!$C$11-Settings!$E$11)/(Settings!$E$8-Settings!$C$8)*$G62) -> 113.2482877 | J62: =VLOOKUP(H62,data[],2,FALSE) ->  | K62: =VLOOKUP(H62,data[],12,FALSE) ->  | V62: 97 | W62: =NA() ->  | X62: =NA() ->  | Y62: =NA() ->  | Z62: 160 | AA62: 180 | AB62: 200 | AC62: =IF(AND($AC$3>=config!V62,$AC$3<config!V63),$AB$3,NA()) -> 
G63: 58 | H63: 2016-10-10 | I63: =Settings!$C$11-((Settings!$C$11-Settings!$E$11)/(Settings!$E$8-Settings!$C$8)*$G63) -> 113.1280822 | J63: =VLOOKUP(H63,data[],2,FALSE) ->  | K63: =VLOOKUP(H63,data[],12,FALSE) ->  | V63: 98 | W63: =NA() ->  | X63: =NA() ->  | Y63: =NA() ->  | Z63: 160 | AA63: 180 | AB63: 200 | AC63: =IF(AND($AC$3>=config!V63,$AC$3<config!V64),$AB$3,NA()) -> 
G64: 59 | H64: 2016-10-11 | I64: =Settings!$C$11-((Settings!$C$11-Settings!$E$11)/(Settings!$E$8-Settings!$C$8)*$G64) -> 113.0078767 | J64: =VLOOKUP(H64,data[],2,FALSE) ->  | K64: =VLOOKUP(H64,data[],12,FALSE) ->  | V64: 99 | W64: =NA() ->  | X64: =NA() ->  | Y64: =NA() ->  | Z64: 160 | AA64: 180 | AB64: 200 | AC64: =IF(AND($AC$3>=config!V64,$AC$3<config!V65),$AB$3,NA()) -> 
G65: 60 | H65: 2016-10-12 | I65: =Settings!$C$11-((Settings!$C$11-Settings!$E$11)/(Settings!$E$8-Settings!$C$8)*$G65) -> 112.8876712 | J65: =VLOOKUP(H65,data[],2,FALSE) ->  | K65: =VLOOKUP(H65,data[],12,FALSE) ->  | V65: 100 | W65: =NA() ->  | X65: =NA() ->  | Y65: =NA() ->  | Z65: 160 | AA65: 180 | AB65: 200 | AC65: =IF(AND($AC$3>=config!V65,$AC$3<config!V66),$AB$3,NA()) -> 
G66: 61 | H66: 2016-10-13 | I66: =Settings!$C$11-((Settings!$C$11-Settings!$E$11)/(Settings!$E$8-Settings!$C$8)*$G66) -> 112.7674658 | J66: =VLOOKUP(H66,data[],2,FALSE) ->  | K66: =VLOOKUP(H66,data[],12,FALSE) ->  | V66: 101 | W66: =NA() ->  | X66: =NA() ->  | Y66: =NA() ->  | Z66: =NA() ->  | AA66: 180 | AB66: 200 | AC66: =IF(AND($AC$3>=config!V66,$AC$3<config!V67),$AB$3,NA()) -> 
G67: 62 | H67: 2016-10-14 | I67: =Settings!$C$11-((Settings!$C$11-Settings!$E$11)/(Settings!$E$8-Settings!$C$8)*$G67) -> 112.6472603 | J67: =VLOOKUP(H67,data[],2,FALSE) ->  | K67: =VLOOKUP(H67,data[],12,FALSE) ->  | V67: 102 | W67: =NA() ->  | X67: =NA() ->  | Y67: =NA() ->  | Z67: =NA() ->  | AA67: 180 | AB67: 200 | AC67: =IF(AND($AC$3>=config!V67,$AC$3<config!V68),$AB$3,NA()) -> 
G68: 63 | H68: 2016-10-15 | I68: =Settings!$C$11-((Settings!$C$11-Settings!$E$11)/(Settings!$E$8-Settings!$C$8)*$G68) -> 112.5270548 | J68: =VLOOKUP(H68,data[],2,FALSE) ->  | K68: =VLOOKUP(H68,data[],12,FALSE) ->  | V68: 103 | W68: =NA() ->  | X68: =NA() ->  | Y68: =NA() ->  | Z68: =NA() ->  | AA68: 180 | AB68: 200 | AC68: =IF(AND($AC$3>=config!V68,$AC$3<config!V69),$AB$3,NA()) -> 
G69: 64 | H69: 2016-10-16 | I69: =Settings!$C$11-((Settings!$C$11-Settings!$E$11)/(Settings!$E$8-Settings!$C$8)*$G69) -> 112.4068493 | J69: =VLOOKUP(H69,data[],2,FALSE) ->  | K69: =VLOOKUP(H69,data[],12,FALSE) ->  | V69: 104 | W69: =NA() ->  | X69: =NA() ->  | Y69: =NA() ->  | Z69: =NA() ->  | AA69: 180 | AB69: 200 | AC69: =IF(AND($AC$3>=config!V69,$AC$3<config!V70),$AB$3,NA()) -> 
G70: =G69+1 -> 65 | H70: =H69+1 -> 2016-10-17 | I70: =Settings!$C$11-((Settings!$C$11-Settings!$E$11)/(Settings!$E$8-Settings!$C$8)*$G70) -> 112.2866438 | J70: =VLOOKUP(H70,data[],2,FALSE) ->  | K70: =VLOOKUP(H70,data[],12,FALSE) ->  | V70: 105 | W70: =NA() ->  | X70: =NA() ->  | Y70: =NA() ->  | Z70: =NA() ->  | AA70: 180 | AB70: 200 | AC70: =IF(AND($AC$3>=config!V70,$AC$3<config!V71),$AB$3,NA()) ->  | AD70: =IF(ISERROR(AC70),NA(),"My current BP: "&TEXT($AB$3,"0")&"/"&TEXT($AC$3,"0")) -> 
G71: 66 | H71: 2016-10-18 | I71: =Settings!$C$11-((Settings!$C$11-Settings!$E$11)/(Settings!$E$8-Settings!$C$8)*$G71) -> 112.1664384 | J71: =VLOOKUP(H71,data[],2,FALSE) ->  | K71: =VLOOKUP(H71,data[],12,FALSE) ->  | V71: 106 | W71: =NA() ->  | X71: =NA() ->  | Y71: =NA() ->  | Z71: =NA() ->  | AA71: 180 | AB71: 200 | AC71: =IF(AND($AC$3>=config!V71,$AC$3<config!V72),$AB$3,NA()) -> 
G72: 67 | H72: 2016-10-19 | I72: =Settings!$C$11-((Settings!$C$11-Settings!$E$11)/(Settings!$E$8-Settings!$C$8)*$G72) -> 112.0462329 | J72: =VLOOKUP(H72,data[],2,FALSE) ->  | K72: =VLOOKUP(H72,data[],12,FALSE) ->  | V72: 107 | W72: =NA() ->  | X72: =NA() ->  | Y72: =NA() ->  | Z72: =NA() ->  | AA72: 180 | AB72: 200 | AC72: =IF(AND($AC$3>=config!V72,$AC$3<config!V73),$AB$3,NA()) -> 
G73: 68 | H73: 2016-10-20 | I73: =Settings!$C$11-((Settings!$C$11-Settings!$E$11)/(Settings!$E$8-Settings!$C$8)*$G73) -> 111.9260274 | J73: =VLOOKUP(H73,data[],2,FALSE) ->  | K73: =VLOOKUP(H73,data[],12,FALSE) ->  | V73: 108 | W73: =NA() ->  | X73: =NA() ->  | Y73: =NA() ->  | Z73: =NA() ->  | AA73: 180 | AB73: 200 | AC73: =IF(AND($AC$3>=config!V73,$AC$3<config!V74),$AB$3,NA()) -> 
G74: 69 | H74: 2016-10-21 | I74: =Settings!$C$11-((Settings!$C$11-Settings!$E$11)/(Settings!$E$8-Settings!$C$8)*$G74) -> 111.8058219 | J74: =VLOOKUP(H74,data[],2,FALSE) ->  | K74: =VLOOKUP(H74,data[],12,FALSE) ->  | V74: 109 | W74: =NA() ->  | X74: =NA() ->  | Y74: =NA() ->  | Z74: =NA() ->  | AA74: 180 | AB74: 200 | AC74: =IF(AND($AC$3>=config!V74,$AC$3<config!V75),$AB$3,NA()) -> 
G75: 70 | H75: 2016-10-22 | I75: =Settings!$C$11-((Settings!$C$11-Settings!$E$11)/(Settings!$E$8-Settings!$C$8)*$G75) -> 111.6856164 | J75: =VLOOKUP(H75,data[],2,FALSE) ->  | K75: =VLOOKUP(H75,data[],12,FALSE) ->  | V75: 110 | W75: =NA() ->  | X75: =NA() ->  | Y75: =NA() ->  | Z75: =NA() ->  | AA75: 180 | AB75: 200 | AC75: =IF(AND($AC$3>=config!V75,$AC$3<config!V76),$AB$3,NA()) -> 
G76: 71 | H76: 2016-10-23 | I76: =Settings!$C$11-((Settings!$C$11-Settings!$E$11)/(Settings!$E$8-Settings!$C$8)*$G76) -> 111.565411 | J76: =VLOOKUP(H76,data[],2,FALSE) ->  | K76: =VLOOKUP(H76,data[],12,FALSE) ->  | V76: 111 | W76: =NA() ->  | X76: =NA() ->  | Y76: =NA() ->  | Z76: =NA() ->  | AA76: =NA() ->  | AB76: 200 | AC76: =IF(AND($AC$3>=config!V76,$AC$3<config!V77),$AB$3,NA()) -> 
G77: 72 | H77: 2016-10-24 | I77: =Settings!$C$11-((Settings!$C$11-Settings!$E$11)/(Settings!$E$8-Settings!$C$8)*$G77) -> 111.4452055 | J77: =VLOOKUP(H77,data[],2,FALSE) ->  | K77: =VLOOKUP(H77,data[],12,FALSE) ->  | V77: 112 | W77: =NA() ->  | X77: =NA() ->  | Y77: =NA() ->  | Z77: =NA() ->  | AA77: =NA() ->  | AB77: 200 | AC77: =IF(AND($AC$3>=config!V77,$AC$3<config!V78),$AB$3,NA()) -> 
G78: 73 | H78: 2016-10-25 | I78: =Settings!$C$11-((Settings!$C$11-Settings!$E$11)/(Settings!$E$8-Settings!$C$8)*$G78) -> 111.325 | J78: =VLOOKUP(H78,data[],2,FALSE) ->  | K78: =VLOOKUP(H78,data[],12,FALSE) ->  | V78: 113 | W78: =NA() ->  | X78: =NA() ->  | Y78: =NA() ->  | Z78: =NA() ->  | AA78: =NA() ->  | AB78: 200 | AC78: =IF(AND($AC$3>=config!V78,$AC$3<config!V79),$AB$3,NA()) -> 
G79: 74 | H79: 2016-10-26 | I79: =Settings!$C$11-((Settings!$C$11-Settings!$E$11)/(Settings!$E$8-Settings!$C$8)*$G79) -> 111.2047945 | J79: =VLOOKUP(H79,data[],2,FALSE) ->  | K79: =VLOOKUP(H79,data[],12,FALSE) ->  | V79: 114 | W79: =NA() ->  | X79: =NA() ->  | Y79: =NA() ->  | Z79: =NA() ->  | AA79: =NA() ->  | AB79: 200 | AC79: =IF(AND($AC$3>=config!V79,$AC$3<config!V80),$AB$3,NA()) -> 
G80: 75 | H80: 2016-10-27 | I80: =Settings!$C$11-((Settings!$C$11-Settings!$E$11)/(Settings!$E$8-Settings!$C$8)*$G80) -> 111.084589 | J80: =VLOOKUP(H80,data[],2,FALSE) ->  | K80: =VLOOKUP(H80,data[],12,FALSE) ->  | V80: 115 | W80: =NA() ->  | X80: =NA() ->  | Y80: =NA() ->  | Z80: =NA() ->  | AA80: =NA() ->  | AB80: 200 | AC80: =IF(AND($AC$3>=config!V80,$AC$3<config!V81),$AB$3,NA()) -> 
G81: 76 | H81: 2016-10-28 | I81: =Settings!$C$11-((Settings!$C$11-Settings!$E$11)/(Settings!$E$8-Settings!$C$8)*$G81) -> 110.9643836 | J81: =VLOOKUP(H81,data[],2,FALSE) ->  | K81: =VLOOKUP(H81,data[],12,FALSE) ->  | V81: 116 | W81: =NA() ->  | X81: =NA() ->  | Y81: =NA() ->  | Z81: =NA() ->  | AA81: =NA() ->  | AB81: 200 | AC81: =IF(AND($AC$3>=config!V81,$AC$3<config!V82),$AB$3,NA()) -> 
G82: 77 | H82: 2016-10-29 | I82: =Settings!$C$11-((Settings!$C$11-Settings!$E$11)/(Settings!$E$8-Settings!$C$8)*$G82) -> 110.8441781 | J82: =VLOOKUP(H82,data[],2,FALSE) ->  | K82: =VLOOKUP(H82,data[],12,FALSE) ->  | V82: 117 | W82: =NA() ->  | X82: =NA() ->  | Y82: =NA() ->  | Z82: =NA() ->  | AA82: =NA() ->  | AB82: 200 | AC82: =IF(AND($AC$3>=config!V82,$AC$3<config!V83),$AB$3,NA()) -> 
G83: 78 | H83: 2016-10-30 | I83: =Settings!$C$11-((Settings!$C$11-Settings!$E$11)/(Settings!$E$8-Settings!$C$8)*$G83) -> 110.7239726 | J83: =VLOOKUP(H83,data[],2,FALSE) ->  | K83: =VLOOKUP(H83,data[],12,FALSE) ->  | V83: 118 | W83: =NA() ->  | X83: =NA() ->  | Y83: =NA() ->  | Z83: =NA() ->  | AA83: =NA() ->  | AB83: 200 | AC83: =IF(AND($AC$3>=config!V83,$AC$3<config!V84),$AB$3,NA()) -> 
G84: 79 | H84: 2016-10-31 | I84: =Settings!$C$11-((Settings!$C$11-Settings!$E$11)/(Settings!$E$8-Settings!$C$8)*$G84) -> 110.6037671 | J84: =VLOOKUP(H84,data[],2,FALSE) ->  | K84: =VLOOKUP(H84,data[],12,FALSE) ->  | V84: 119 | W84: =NA() ->  | X84: =NA() ->  | Y84: =NA() ->  | Z84: =NA() ->  | AA84: =NA() ->  | AB84: 200 | AC84: =IF(AND($AC$3>=config!V84,$AC$3<config!V85),$AB$3,NA()) -> 
G85: 80 | H85: 2016-11-01 | I85: =Settings!$C$11-((Settings!$C$11-Settings!$E$11)/(Settings!$E$8-Settings!$C$8)*$G85) -> 110.4835616 | J85: =VLOOKUP(H85,data[],2,FALSE) ->  | K85: =VLOOKUP(H85,data[],12,FALSE) ->  | V85: 120 | W85: =NA() ->  | X85: =NA() ->  | Y85: =NA() ->  | Z85: =NA() ->  | AA85: =NA() ->  | AB85: 200 | AC85: =IF(AND($AC$3>=config!V85,$AC$3<config!V86),$AB$3,NA()) -> 
G86: 81 | H86: 2016-11-02 | I86: =Settings!$C$11-((Settings!$C$11-Settings!$E$11)/(Settings!$E$8-Settings!$C$8)*$G86) -> 110.3633562 | J86: =VLOOKUP(H86,data[],2,FALSE) ->  | K86: =VLOOKUP(H86,data[],12,FALSE) -> 
G87: 82 | H87: 2016-11-03 | I87: =Settings!$C$11-((Settings!$C$11-Settings!$E$11)/(Settings!$E$8-Settings!$C$8)*$G87) -> 110.2431507 | J87: =VLOOKUP(H87,data[],2,FALSE) ->  | K87: =VLOOKUP(H87,data[],12,FALSE) -> 
G88: 83 | H88: 2016-11-04 | I88: =Settings!$C$11-((Settings!$C$11-Settings!$E$11)/(Settings!$E$8-Settings!$C$8)*$G88) -> 110.1229452 | J88: =VLOOKUP(H88,data[],2,FALSE) ->  | K88: =VLOOKUP(H88,data[],12,FALSE) -> 
G89: 84 | H89: 2016-11-05 | I89: =Settings!$C$11-((Settings!$C$11-Settings!$E$11)/(Settings!$E$8-Settings!$C$8)*$G89) -> 110.0027397 | J89: =VLOOKUP(H89,data[],2,FALSE) ->  | K89: =VLOOKUP(H89,data[],12,FALSE) -> 
G90: 85 | H90: 2016-11-06 | I90: =Settings!$C$11-((Settings!$C$11-Settings!$E$11)/(Settings!$E$8-Settings!$C$8)*$G90) -> 109.8825342 | J90: =VLOOKUP(H90,data[],2,FALSE) ->  | K90: =VLOOKUP(H90,data[],12,FALSE) -> 
G91: 86 | H91: 2016-11-07 | I91: =Settings!$C$11-((Settings!$C$11-Settings!$E$11)/(Settings!$E$8-Settings!$C$8)*$G91) -> 109.7623288 | J91: =VLOOKUP(H91,data[],2,FALSE) ->  | K91: =VLOOKUP(H91,data[],12,FALSE) -> 
G92: 87 | H92: 2016-11-08 | I92: =Settings!$C$11-((Settings!$C$11-Settings!$E$11)/(Settings!$E$8-Settings!$C$8)*$G92) -> 109.6421233 | J92: =VLOOKUP(H92,data[],2,FALSE) ->  | K92: =VLOOKUP(H92,data[],12,FALSE) -> 
G93: 88 | H93: 2016-11-09 | I93: =Settings!$C$11-((Settings!$C$11-Settings!$E$11)/(Settings!$E$8-Settings!$C$8)*$G93) -> 109.5219178 | J93: =VLOOKUP(H93,data[],2,FALSE) ->  | K93: =VLOOKUP(H93,data[],12,FALSE) -> 
G94: 89 | H94: 2016-11-10 | I94: =Settings!$C$11-((Settings!$C$11-Settings!$E$11)/(Settings!$E$8-Settings!$C$8)*$G94) -> 109.4017123 | J94: =VLOOKUP(H94,data[],2,FALSE) ->  | K94: =VLOOKUP(H94,data[],12,FALSE) -> 
G95: 90 | H95: 2016-11-11 | I95: =Settings!$C$11-((Settings!$C$11-Settings!$E$11)/(Settings!$E$8-Settings!$C$8)*$G95) -> 109.2815068 | J95: =VLOOKUP(H95,data[],2,FALSE) ->  | K95: =VLOOKUP(H95,data[],12,FALSE) -> 
G96: 91 | H96: 2016-11-12 | I96: =Settings!$C$11-((Settings!$C$11-Settings!$E$11)/(Settings!$E$8-Settings!$C$8)*$G96) -> 109.1613014 | J96: =VLOOKUP(H96,data[],2,FALSE) ->  | K96: =VLOOKUP(H96,data[],12,FALSE) -> 
G97: 92 | H97: 2016-11-13 | I97: =Settings!$C$11-((Settings!$C$11-Settings!$E$11)/(Settings!$E$8-Settings!$C$8)*$G97) -> 109.0410959 | J97: =VLOOKUP(H97,data[],2,FALSE) ->  | K97: =VLOOKUP(H97,data[],12,FALSE) -> 
G98: 93 | H98: 2016-11-14 | I98: =Settings!$C$11-((Settings!$C$11-Settings!$E$11)/(Settings!$E$8-Settings!$C$8)*$G98) -> 108.9208904 | J98: =VLOOKUP(H98,data[],2,FALSE) ->  | K98: =VLOOKUP(H98,data[],12,FALSE) -> 
G99: 94 | H99: 2016-11-15 | I99: =Settings!$C$11-((Settings!$C$11-Settings!$E$11)/(Settings!$E$8-Settings!$C$8)*$G99) -> 108.8006849 | J99: =VLOOKUP(H99,data[],2,FALSE) ->  | K99: =VLOOKUP(H99,data[],12,FALSE) -> 
G100: 95 | H100: 2016-11-16 | I100: =Settings!$C$11-((Settings!$C$11-Settings!$E$11)/(Settings!$E$8-Settings!$C$8)*$G100) -> 108.6804795 | J100: =VLOOKUP(H100,data[],2,FALSE) ->  | K100: =VLOOKUP(H100,data[],12,FALSE) -> 
G101: 96 | H101: 2016-11-17 | I101: =Settings!$C$11-((Settings!$C$11-Settings!$E$11)/(Settings!$E$8-Settings!$C$8)*$G101) -> 108.560274 | J101: =VLOOKUP(H101,data[],2,FALSE) ->  | K101: =VLOOKUP(H101,data[],12,FALSE) -> 
G102: 97 | H102: 2016-11-18 | I102: =Settings!$C$11-((Settings!$C$11-Settings!$E$11)/(Settings!$E$8-Settings!$C$8)*$G102) -> 108.4400685 | J102: =VLOOKUP(H102,data[],2,FALSE) ->  | K102: =VLOOKUP(H102,data[],12,FALSE) -> 
G103: 98 | H103: 2016-11-19 | I103: =Settings!$C$11-((Settings!$C$11-Settings!$E$11)/(Settings!$E$8-Settings!$C$8)*$G103) -> 108.319863 | J103: =VLOOKUP(H103,data[],2,FALSE) ->  | K103: =VLOOKUP(H103,data[],12,FALSE) -> 
G104: 99 | H104: 2016-11-20 | I104: =Settings!$C$11-((Settings!$C$11-Settings!$E$11)/(Settings!$E$8-Settings!$C$8)*$G104) -> 108.1996575 | J104: =VLOOKUP(H104,data[],2,FALSE) ->  | K104: =VLOOKUP(H104,data[],12,FALSE) -> 
G105: 100 | H105: 2016-11-21 | I105: =Settings!$C$11-((Settings!$C$11-Settings!$E$11)/(Settings!$E$8-Settings!$C$8)*$G105) -> 108.0794521 | J105: =VLOOKUP(H105,data[],2,FALSE) ->  | K105: =VLOOKUP(H105,data[],12,FALSE) -> 
G106: 101 | H106: 2016-11-22 | I106: =Settings!$C$11-((Settings!$C$11-Settings!$E$11)/(Settings!$E$8-Settings!$C$8)*$G106) -> 107.9592466 | J106: =VLOOKUP(H106,data[],2,FALSE) ->  | K106: =VLOOKUP(H106,data[],12,FALSE) -> 
G107: 102 | H107: 2016-11-23 | I107: =Settings!$C$11-((Settings!$C$11-Settings!$E$11)/(Settings!$E$8-Settings!$C$8)*$G107) -> 107.8390411 | J107: =VLOOKUP(H107,data[],2,FALSE) ->  | K107: =VLOOKUP(H107,data[],12,FALSE) -> 
G108: 103 | H108: 2016-11-24 | I108: =Settings!$C$11-((Settings!$C$11-Settings!$E$11)/(Settings!$E$8-Settings!$C$8)*$G108) -> 107.7188356 | J108: =VLOOKUP(H108,data[],2,FALSE) ->  | K108: =VLOOKUP(H108,data[],12,FALSE) -> 
G109: 104 | H109: 2016-11-25 | I109: =Settings!$C$11-((Settings!$C$11-Settings!$E$11)/(Settings!$E$8-Settings!$C$8)*$G109) -> 107.5986301 | J109: =VLOOKUP(H109,data[],2,FALSE) ->  | K109: =VLOOKUP(H109,data[],12,FALSE) -> 
G110: 105 | H110: 2016-11-26 | I110: =Settings!$C$11-((Settings!$C$11-Settings!$E$11)/(Settings!$E$8-Settings!$C$8)*$G110) -> 107.4784247 | J110: =VLOOKUP(H110,data[],2,FALSE) ->  | K110: =VLOOKUP(H110,data[],12,FALSE) -> 
G111: 106 | H111: 2016-11-27 | I111: =Settings!$C$11-((Settings!$C$11-Settings!$E$11)/(Settings!$E$8-Settings!$C$8)*$G111) -> 107.3582192 | J111: =VLOOKUP(H111,data[],2,FALSE) ->  | K111: =VLOOKUP(H111,data[],12,FALSE) -> 
G112: 107 | H112: 2016-11-28 | I112: =Settings!$C$11-((Settings!$C$11-Settings!$E$11)/(Settings!$E$8-Settings!$C$8)*$G112) -> 107.2380137 | J112: =VLOOKUP(H112,data[],2,FALSE) ->  | K112: =VLOOKUP(H112,data[],12,FALSE) -> 
G113: 108 | H113: 2016-11-29 | I113: =Settings!$C$11-((Settings!$C$11-Settings!$E$11)/(Settings!$E$8-Settings!$C$8)*$G113) -> 107.1178082 | J113: =VLOOKUP(H113,data[],2,FALSE) ->  | K113: =VLOOKUP(H113,data[],12,FALSE) -> 
G114: 109 | H114: 2016-11-30 | I114: =Settings!$C$11-((Settings!$C$11-Settings!$E$11)/(Settings!$E$8-Settings!$C$8)*$G114) -> 106.9976027 | J114: =VLOOKUP(H114,data[],2,FALSE) ->  | K114: =VLOOKUP(H114,data[],12,FALSE) -> 
G115: 110 | H115: 2016-12-01 | I115: =Settings!$C$11-((Settings!$C$11-Settings!$E$11)/(Settings!$E$8-Settings!$C$8)*$G115) -> 106.8773973 | J115: =VLOOKUP(H115,data[],2,FALSE) ->  | K115: =VLOOKUP(H115,data[],12,FALSE) -> 
G116: 111 | H116: 2016-12-02 | I116: =Settings!$C$11-((Settings!$C$11-Settings!$E$11)/(Settings!$E$8-Settings!$C$8)*$G116) -> 106.7571918 | J116: =VLOOKUP(H116,data[],2,FALSE) ->  | K116: =VLOOKUP(H116,data[],12,FALSE) -> 
G117: 112 | H117: 2016-12-03 | I117: =Settings!$C$11-((Settings!$C$11-Settings!$E$11)/(Settings!$E$8-Settings!$C$8)*$G117) -> 106.6369863 | J117: =VLOOKUP(H117,data[],2,FALSE) ->  | K117: =VLOOKUP(H117,data[],12,FALSE) -> 
G118: 113 | H118: 2016-12-04 | I118: =Settings!$C$11-((Settings!$C$11-Settings!$E$11)/(Settings!$E$8-Settings!$C$8)*$G118) -> 106.5167808 | J118: =VLOOKUP(H118,data[],2,FALSE) ->  | K118: =VLOOKUP(H118,data[],12,FALSE) -> 
G119: 114 | H119: 2016-12-05 | I119: =Settings!$C$11-((Settings!$C$11-Settings!$E$11)/(Settings!$E$8-Settings!$C$8)*$G119) -> 106.3965753 | J119: =VLOOKUP(H119,data[],2,FALSE) ->  | K119: =VLOOKUP(H119,data[],12,FALSE) -> 
G120: 115 | H120: 2016-12-06 | I120: =Settings!$C$11-((Settings!$C$11-Settings!$E$11)/(Settings!$E$8-Settings!$C$8)*$G120) -> 106.2763699 | J120: =VLOOKUP(H120,data[],2,FALSE) ->  | K120: =VLOOKUP(H120,data[],12,FALSE) -> 
G121: 116 | H121: 2016-12-07 | I121: =Settings!$C$11-((Settings!$C$11-Settings!$E$11)/(Settings!$E$8-Settings!$C$8)*$G121) -> 106.1561644 | J121: =VLOOKUP(H121,data[],2,FALSE) ->  | K121: =VLOOKUP(H121,data[],12,FALSE) -> 
G122: 117 | H122: 2016-12-08 | I122: =Settings!$C$11-((Settings!$C$11-Settings!$E$11)/(Settings!$E$8-Settings!$C$8)*$G122) -> 106.0359589 | J122: =VLOOKUP(H122,data[],2,FALSE) ->  | K122: =VLOOKUP(H122,data[],12,FALSE) -> 
G123: 118 | H123: 2016-12-09 | I123: =Settings!$C$11-((Settings!$C$11-Settings!$E$11)/(Settings!$E$8-Settings!$C$8)*$G123) -> 105.9157534 | J123: =VLOOKUP(H123,data[],2,FALSE) ->  | K123: =VLOOKUP(H123,data[],12,FALSE) -> 
G124: 119 | H124: 2016-12-10 | I124: =Settings!$C$11-((Settings!$C$11-Settings!$E$11)/(Settings!$E$8-Settings!$C$8)*$G124) -> 105.7955479 | J124: =VLOOKUP(H124,data[],2,FALSE) ->  | K124: =VLOOKUP(H124,data[],12,FALSE) -> 
G125: 120 | H125: 2016-12-11 | I125: =Settings!$C$11-((Settings!$C$11-Settings!$E$11)/(Settings!$E$8-Settings!$C$8)*$G125) -> 105.6753425 | J125: =VLOOKUP(H125,data[],2,FALSE) ->  | K125: =VLOOKUP(H125,data[],12,FALSE) -> 
G126: 121 | H126: 2016-12-12 | I126: =Settings!$C$11-((Settings!$C$11-Settings!$E$11)/(Settings!$E$8-Settings!$C$8)*$G126) -> 105.555137 | J126: =VLOOKUP(H126,data[],2,FALSE) ->  | K126: =VLOOKUP(H126,data[],12,FALSE) -> 
G127: 122 | H127: 2016-12-13 | I127: =Settings!$C$11-((Settings!$C$11-Settings!$E$11)/(Settings!$E$8-Settings!$C$8)*$G127) -> 105.4349315 | J127: =VLOOKUP(H127,data[],2,FALSE) ->  | K127: =VLOOKUP(H127,data[],12,FALSE) -> 
G128: 123 | H128: 2016-12-14 | I128: =Settings!$C$11-((Settings!$C$11-Settings!$E$11)/(Settings!$E$8-Settings!$C$8)*$G128) -> 105.314726 | J128: =VLOOKUP(H128,data[],2,FALSE) ->  | K128: =VLOOKUP(H128,data[],12,FALSE) -> 
G129: 124 | H129: 2016-12-15 | I129: =Settings!$C$11-((Settings!$C$11-Settings!$E$11)/(Settings!$E$8-Settings!$C$8)*$G129) -> 105.1945205 | J129: =VLOOKUP(H129,data[],2,FALSE) ->  | K129: =VLOOKUP(H129,data[],12,FALSE) -> 
G130: 125 | H130: 2016-12-16 | I130: =Settings!$C$11-((Settings!$C$11-Settings!$E$11)/(Settings!$E$8-Settings!$C$8)*$G130) -> 105.0743151 | J130: =VLOOKUP(H130,data[],2,FALSE) ->  | K130: =VLOOKUP(H130,data[],12,FALSE) -> 
G131: 126 | H131: 2016-12-17 | I131: =Settings!$C$11-((Settings!$C$11-Settings!$E$11)/(Settings!$E$8-Settings!$C$8)*$G131) -> 104.9541096 | J131: =VLOOKUP(H131,data[],2,FALSE) ->  | K131: =VLOOKUP(H131,data[],12,FALSE) -> 
G132: 127 | H132: 2016-12-18 | I132: =Settings!$C$11-((Settings!$C$11-Settings!$E$11)/(Settings!$E$8-Settings!$C$8)*$G132) -> 104.8339041 | J132: =VLOOKUP(H132,data[],2,FALSE) ->  | K132: =VLOOKUP(H132,data[],12,FALSE) -> 
G133: 128 | H133: 2016-12-19 | I133: =Settings!$C$11-((Settings!$C$11-Settings!$E$11)/(Settings!$E$8-Settings!$C$8)*$G133) -> 104.7136986 | J133: =VLOOKUP(H133,data[],2,FALSE) ->  | K133: =VLOOKUP(H133,data[],12,FALSE) -> 
G134: =G133+1 -> 129 | H134: =H133+1 -> 2016-12-20 | I134: =Settings!$C$11-((Settings!$C$11-Settings!$E$11)/(Settings!$E$8-Settings!$C$8)*$G134) -> 104.5934932 | J134: =VLOOKUP(H134,data[],2,FALSE) ->  | K134: =VLOOKUP(H134,data[],12,FALSE) -> 
G135: 130 | H135: 2016-12-21 | I135: =Settings!$C$11-((Settings!$C$11-Settings!$E$11)/(Settings!$E$8-Settings!$C$8)*$G135) -> 104.4732877 | J135: =VLOOKUP(H135,data[],2,FALSE) ->  | K135: =VLOOKUP(H135,data[],12,FALSE) -> 
G136: 131 | H136: 2016-12-22 | I136: =Settings!$C$11-((Settings!$C$11-Settings!$E$11)/(Settings!$E$8-Settings!$C$8)*$G136) -> 104.3530822 | J136: =VLOOKUP(H136,data[],2,FALSE) ->  | K136: =VLOOKUP(H136,data[],12,FALSE) -> 
G137: 132 | H137: 2016-12-23 | I137: =Settings!$C$11-((Settings!$C$11-Settings!$E$11)/(Settings!$E$8-Settings!$C$8)*$G137) -> 104.2328767 | J137: =VLOOKUP(H137,data[],2,FALSE) ->  | K137: =VLOOKUP(H137,data[],12,FALSE) -> 
G138: 133 | H138: 2016-12-24 | I138: =Settings!$C$11-((Settings!$C$11-Settings!$E$11)/(Settings!$E$8-Settings!$C$8)*$G138) -> 104.1126712 | J138: =VLOOKUP(H138,data[],2,FALSE) ->  | K138: =VLOOKUP(H138,data[],12,FALSE) -> 
G139: 134 | H139: 2016-12-25 | I139: =Settings!$C$11-((Settings!$C$11-Settings!$E$11)/(Settings!$E$8-Settings!$C$8)*$G139) -> 103.9924658 | J139: =VLOOKUP(H139,data[],2,FALSE) ->  | K139: =VLOOKUP(H139,data[],12,FALSE) -> 
G140: 135 | H140: 2016-12-26 | I140: =Settings!$C$11-((Settings!$C$11-Settings!$E$11)/(Settings!$E$8-Settings!$C$8)*$G140) -> 103.8722603 | J140: =VLOOKUP(H140,data[],2,FALSE) ->  | K140: =VLOOKUP(H140,data[],12,FALSE) -> 
G141: 136 | H141: 2016-12-27 | I141: =Settings!$C$11-((Settings!$C$11-Settings!$E$11)/(Settings!$E$8-Settings!$C$8)*$G141) -> 103.7520548 | J141: =VLOOKUP(H141,data[],2,FALSE) ->  | K141: =VLOOKUP(H141,data[],12,FALSE) -> 
G142: 137 | H142: 2016-12-28 | I142: =Settings!$C$11-((Settings!$C$11-Settings!$E$11)/(Settings!$E$8-Settings!$C$8)*$G142) -> 103.6318493 | J142: =VLOOKUP(H142,data[],2,FALSE) ->  | K142: =VLOOKUP(H142,data[],12,FALSE) -> 
G143: 138 | H143: 2016-12-29 | I143: =Settings!$C$11-((Settings!$C$11-Settings!$E$11)/(Settings!$E$8-Settings!$C$8)*$G143) -> 103.5116438 | J143: =VLOOKUP(H143,data[],2,FALSE) ->  | K143: =VLOOKUP(H143,data[],12,FALSE) -> 
G144: 139 | H144: 2016-12-30 | I144: =Settings!$C$11-((Settings!$C$11-Settings!$E$11)/(Settings!$E$8-Settings!$C$8)*$G144) -> 103.3914384 | J144: =VLOOKUP(H144,data[],2,FALSE) ->  | K144: =VLOOKUP(H144,data[],12,FALSE) -> 
G145: 140 | H145: 2016-12-31 | I145: =Settings!$C$11-((Settings!$C$11-Settings!$E$11)/(Settings!$E$8-Settings!$C$8)*$G145) -> 103.2712329 | J145: =VLOOKUP(H145,data[],2,FALSE) ->  | K145: =VLOOKUP(H145,data[],12,FALSE) -> 
G146: 141 | H146: 2017-01-01 | I146: =Settings!$C$11-((Settings!$C$11-Settings!$E$11)/(Settings!$E$8-Settings!$C$8)*$G146) -> 103.1510274 | J146: =VLOOKUP(H146,data[],2,FALSE) ->  | K146: =VLOOKUP(H146,data[],12,FALSE) -> 
G147: 142 | H147: 2017-01-02 | I147: =Settings!$C$11-((Settings!$C$11-Settings!$E$11)/(Settings!$E$8-Settings!$C$8)*$G147) -> 103.0308219 | J147: =VLOOKUP(H147,data[],2,FALSE) ->  | K147: =VLOOKUP(H147,data[],12,FALSE) -> 
G148: 143 | H148: 2017-01-03 | I148: =Settings!$C$11-((Settings!$C$11-Settings!$E$11)/(Settings!$E$8-Settings!$C$8)*$G148) -> 102.9106164 | J148: =VLOOKUP(H148,data[],2,FALSE) ->  | K148: =VLOOKUP(H148,data[],12,FALSE) -> 
G149: 144 | H149: 2017-01-04 | I149: =Settings!$C$11-((Settings!$C$11-Settings!$E$11)/(Settings!$E$8-Settings!$C$8)*$G149) -> 102.790411 | J149: =VLOOKUP(H149,data[],2,FALSE) ->  | K149: =VLOOKUP(H149,data[],12,FALSE) -> 
G150: 145 | H150: 2017-01-05 | I150: =Settings!$C$11-((Settings!$C$11-Settings!$E$11)/(Settings!$E$8-Settings!$C$8)*$G150) -> 102.6702055 | J150: =VLOOKUP(H150,data[],2,FALSE) ->  | K150: =VLOOKUP(H150,data[],12,FALSE) -> 
G151: 146 | H151: 2017-01-06 | I151: =Settings!$C$11-((Settings!$C$11-Settings!$E$11)/(Settings!$E$8-Settings!$C$8)*$G151) -> 102.55 | J151: =VLOOKUP(H151,data[],2,FALSE) ->  | K151: =VLOOKUP(H151,data[],12,FALSE) -> 
G152: 147 | H152: 2017-01-07 | I152: =Settings!$C$11-((Settings!$C$11-Settings!$E$11)/(Settings!$E$8-Settings!$C$8)*$G152) -> 102.4297945 | J152: =VLOOKUP(H152,data[],2,FALSE) ->  | K152: =VLOOKUP(H152,data[],12,FALSE) -> 
G153: 148 | H153: 2017-01-08 | I153: =Settings!$C$11-((Settings!$C$11-Settings!$E$11)/(Settings!$E$8-Settings!$C$8)*$G153) -> 102.309589 | J153: =VLOOKUP(H153,data[],2,FALSE) ->  | K153: =VLOOKUP(H153,data[],12,FALSE) -> 
G154: 149 | H154: 2017-01-09 | I154: =Settings!$C$11-((Settings!$C$11-Settings!$E$11)/(Settings!$E$8-Settings!$C$8)*$G154) -> 102.1893836 | J154: =VLOOKUP(H154,data[],2,FALSE) ->  | K154: =VLOOKUP(H154,data[],12,FALSE) -> 
G155: 150 | H155: 2017-01-10 | I155: =Settings!$C$11-((Settings!$C$11-Settings!$E$11)/(Settings!$E$8-Settings!$C$8)*$G155) -> 102.0691781 | J155: =VLOOKUP(H155,data[],2,FALSE) ->  | K155: =VLOOKUP(H155,data[],12,FALSE) -> 
G156: 151 | H156: 2017-01-11 | I156: =Settings!$C$11-((Settings!$C$11-Settings!$E$11)/(Settings!$E$8-Settings!$C$8)*$G156) -> 101.9489726 | J156: =VLOOKUP(H156,data[],2,FALSE) ->  | K156: =VLOOKUP(H156,data[],12,FALSE) -> 
G157: 152 | H157: 2017-01-12 | I157: =Settings!$C$11-((Settings!$C$11-Settings!$E$11)/(Settings!$E$8-Settings!$C$8)*$G157) -> 101.8287671 | J157: =VLOOKUP(H157,data[],2,FALSE) ->  | K157: =VLOOKUP(H157,data[],12,FALSE) -> 
G158: 153 | H158: 2017-01-13 | I158: =Settings!$C$11-((Settings!$C$11-Settings!$E$11)/(Settings!$E$8-Settings!$C$8)*$G158) -> 101.7085616 | J158: =VLOOKUP(H158,data[],2,FALSE) ->  | K158: =VLOOKUP(H158,data[],12,FALSE) -> 
G159: 154 | H159: 2017-01-14 | I159: =Settings!$C$11-((Settings!$C$11-Settings!$E$11)/(Settings!$E$8-Settings!$C$8)*$G159) -> 101.5883562 | J159: =VLOOKUP(H159,data[],2,FALSE) ->  | K159: =VLOOKUP(H159,data[],12,FALSE) -> 
G160: 155 | H160: 2017-01-15 | I160: =Settings!$C$11-((Settings!$C$11-Settings!$E$11)/(Settings!$E$8-Settings!$C$8)*$G160) -> 101.4681507 | J160: =VLOOKUP(H160,data[],2,FALSE) ->  | K160: =VLOOKUP(H160,data[],12,FALSE) -> 
G161: 156 | H161: 2017-01-16 | I161: =Settings!$C$11-((Settings!$C$11-Settings!$E$11)/(Settings!$E$8-Settings!$C$8)*$G161) -> 101.3479452 | J161: =VLOOKUP(H161,data[],2,FALSE) ->  | K161: =VLOOKUP(H161,data[],12,FALSE) -> 
G162: 157 | H162: 2017-01-17 | I162: =Settings!$C$11-((Settings!$C$11-Settings!$E$11)/(Settings!$E$8-Settings!$C$8)*$G162) -> 101.2277397 | J162: =VLOOKUP(H162,data[],2,FALSE) ->  | K162: =VLOOKUP(H162,data[],12,FALSE) -> 
G163: 158 | H163: 2017-01-18 | I163: =Settings!$C$11-((Settings!$C$11-Settings!$E$11)/(Settings!$E$8-Settings!$C$8)*$G163) -> 101.1075342 | J163: =VLOOKUP(H163,data[],2,FALSE) ->  | K163: =VLOOKUP(H163,data[],12,FALSE) -> 
G164: 159 | H164: 2017-01-19 | I164: =Settings!$C$11-((Settings!$C$11-Settings!$E$11)/(Settings!$E$8-Settings!$C$8)*$G164) -> 100.9873288 | J164: =VLOOKUP(H164,data[],2,FALSE) ->  | K164: =VLOOKUP(H164,data[],12,FALSE) -> 
G165: 160 | H165: 2017-01-20 | I165: =Settings!$C$11-((Settings!$C$11-Settings!$E$11)/(Settings!$E$8-Settings!$C$8)*$G165) -> 100.8671233 | J165: =VLOOKUP(H165,data[],2,FALSE) ->  | K165: =VLOOKUP(H165,data[],12,FALSE) -> 
G166: 161 | H166: 2017-01-21 | I166: =Settings!$C$11-((Settings!$C$11-Settings!$E$11)/(Settings!$E$8-Settings!$C$8)*$G166) -> 100.7469178 | J166: =VLOOKUP(H166,data[],2,FALSE) ->  | K166: =VLOOKUP(H166,data[],12,FALSE) -> 
G167: 162 | H167: 2017-01-22 | I167: =Settings!$C$11-((Settings!$C$11-Settings!$E$11)/(Settings!$E$8-Settings!$C$8)*$G167) -> 100.6267123 | J167: =VLOOKUP(H167,data[],2,FALSE) ->  | K167: =VLOOKUP(H167,data[],12,FALSE) -> 
G168: 163 | H168: 2017-01-23 | I168: =Settings!$C$11-((Settings!$C$11-Settings!$E$11)/(Settings!$E$8-Settings!$C$8)*$G168) -> 100.5065068 | J168: =VLOOKUP(H168,data[],2,FALSE) ->  | K168: =VLOOKUP(H168,data[],12,FALSE) -> 
G169: 164 | H169: 2017-01-24 | I169: =Settings!$C$11-((Settings!$C$11-Settings!$E$11)/(Settings!$E$8-Settings!$C$8)*$G169) -> 100.3863014 | J169: =VLOOKUP(H169,data[],2,FALSE) ->  | K169: =VLOOKUP(H169,data[],12,FALSE) -> 
G170: 165 | H170: 2017-01-25 | I170: =Settings!$C$11-((Settings!$C$11-Settings!$E$11)/(Settings!$E$8-Settings!$C$8)*$G170) -> 100.2660959 | J170: =VLOOKUP(H170,data[],2,FALSE) ->  | K170: =VLOOKUP(H170,data[],12,FALSE) -> 
G171: 166 | H171: 2017-01-26 | I171: =Settings!$C$11-((Settings!$C$11-Settings!$E$11)/(Settings!$E$8-Settings!$C$8)*$G171) -> 100.1458904 | J171: =VLOOKUP(H171,data[],2,FALSE) ->  | K171: =VLOOKUP(H171,data[],12,FALSE) -> 
G172: 167 | H172: 2017-01-27 | I172: =Settings!$C$11-((Settings!$C$11-Settings!$E$11)/(Settings!$E$8-Settings!$C$8)*$G172) -> 100.0256849 | J172: =VLOOKUP(H172,data[],2,FALSE) ->  | K172: =VLOOKUP(H172,data[],12,FALSE) -> 
G173: 168 | H173: 2017-01-28 | I173: =Settings!$C$11-((Settings!$C$11-Settings!$E$11)/(Settings!$E$8-Settings!$C$8)*$G173) -> 99.90547945 | J173: =VLOOKUP(H173,data[],2,FALSE) ->  | K173: =VLOOKUP(H173,data[],12,FALSE) -> 
G174: 169 | H174: 2017-01-29 | I174: =Settings!$C$11-((Settings!$C$11-Settings!$E$11)/(Settings!$E$8-Settings!$C$8)*$G174) -> 99.78527397 | J174: =VLOOKUP(H174,data[],2,FALSE) ->  | K174: =VLOOKUP(H174,data[],12,FALSE) -> 
G175: 170 | H175: 2017-01-30 | I175: =Settings!$C$11-((Settings!$C$11-Settings!$E$11)/(Settings!$E$8-Settings!$C$8)*$G175) -> 99.66506849 | J175: =VLOOKUP(H175,data[],2,FALSE) ->  | K175: =VLOOKUP(H175,data[],12,FALSE) -> 
G176: 171 | H176: 2017-01-31 | I176: =Settings!$C$11-((Settings!$C$11-Settings!$E$11)/(Settings!$E$8-Settings!$C$8)*$G176) -> 99.54486301 | J176: =VLOOKUP(H176,data[],2,FALSE) ->  | K176: =VLOOKUP(H176,data[],12,FALSE) -> 
G177: 172 | H177: 2017-02-01 | I177: =Settings!$C$11-((Settings!$C$11-Settings!$E$11)/(Settings!$E$8-Settings!$C$8)*$G177) -> 99.42465753 | J177: =VLOOKUP(H177,data[],2,FALSE) ->  | K177: =VLOOKUP(H177,data[],12,FALSE) -> 
G178: 173 | H178: 2017-02-02 | I178: =Settings!$C$11-((Settings!$C$11-Settings!$E$11)/(Settings!$E$8-Settings!$C$8)*$G178) -> 99.30445205 | J178: =VLOOKUP(H178,data[],2,FALSE) ->  | K178: =VLOOKUP(H178,data[],12,FALSE) -> 
G179: 174 | H179: 2017-02-03 | I179: =Settings!$C$11-((Settings!$C$11-Settings!$E$11)/(Settings!$E$8-Settings!$C$8)*$G179) -> 99.18424658 | J179: =VLOOKUP(H179,data[],2,FALSE) ->  | K179: =VLOOKUP(H179,data[],12,FALSE) -> 
G180: 175 | H180: 2017-02-04 | I180: =Settings!$C$11-((Settings!$C$11-Settings!$E$11)/(Settings!$E$8-Settings!$C$8)*$G180) -> 99.0640411 | J180: =VLOOKUP(H180,data[],2,FALSE) ->  | K180: =VLOOKUP(H180,data[],12,FALSE) -> 
G181: 176 | H181: 2017-02-05 | I181: =Settings!$C$11-((Settings!$C$11-Settings!$E$11)/(Settings!$E$8-Settings!$C$8)*$G181) -> 98.94383562 | J181: =VLOOKUP(H181,data[],2,FALSE) ->  | K181: =VLOOKUP(H181,data[],12,FALSE) -> 
G182: 177 | H182: 2017-02-06 | I182: =Settings!$C$11-((Settings!$C$11-Settings!$E$11)/(Settings!$E$8-Settings!$C$8)*$G182) -> 98.82363014 | J182: =VLOOKUP(H182,data[],2,FALSE) ->  | K182: =VLOOKUP(H182,data[],12,FALSE) -> 
G183: 178 | H183: 2017-02-07 | I183: =Settings!$C$11-((Settings!$C$11-Settings!$E$11)/(Settings!$E$8-Settings!$C$8)*$G183) -> 98.70342466 | J183: =VLOOKUP(H183,data[],2,FALSE) ->  | K183: =VLOOKUP(H183,data[],12,FALSE) -> 
G184: 179 | H184: 2017-02-08 | I184: =Settings!$C$11-((Settings!$C$11-Settings!$E$11)/(Settings!$E$8-Settings!$C$8)*$G184) -> 98.58321918 | J184: =VLOOKUP(H184,data[],2,FALSE) -> 115.7 | K184: =VLOOKUP(H184,data[],12,FALSE) -> 85
G185: 180 | H185: 2017-02-09 | I185: =Settings!$C$11-((Settings!$C$11-Settings!$E$11)/(Settings!$E$8-Settings!$C$8)*$G185) -> 98.4630137 | J185: =VLOOKUP(H185,data[],2,FALSE) ->  | K185: =VLOOKUP(H185,data[],12,FALSE) -> 
G186: 181 | H186: 2017-02-10 | I186: =Settings!$C$11-((Settings!$C$11-Settings!$E$11)/(Settings!$E$8-Settings!$C$8)*$G186) -> 98.34280822 | J186: =VLOOKUP(H186,data[],2,FALSE) ->  | K186: =VLOOKUP(H186,data[],12,FALSE) -> 
G187: 182 | H187: 2017-02-11 | I187: =Settings!$C$11-((Settings!$C$11-Settings!$E$11)/(Settings!$E$8-Settings!$C$8)*$G187) -> 98.22260274 | J187: =VLOOKUP(H187,data[],2,FALSE) ->  | K187: =VLOOKUP(H187,data[],12,FALSE) -> 
G188: 183 | H188: 2017-02-12 | I188: =Settings!$C$11-((Settings!$C$11-Settings!$E$11)/(Settings!$E$8-Settings!$C$8)*$G188) -> 98.10239726 | J188: =VLOOKUP(H188,data[],2,FALSE) ->  | K188: =VLOOKUP(H188,data[],12,FALSE) -> 
G189: 184 | H189: 2017-02-13 | I189: =Settings!$C$11-((Settings!$C$11-Settings!$E$11)/(Settings!$E$8-Settings!$C$8)*$G189) -> 97.98219178 | J189: =VLOOKUP(H189,data[],2,FALSE) ->  | K189: =VLOOKUP(H189,data[],12,FALSE) -> 
G190: 185 | H190: 2017-02-14 | I190: =Settings!$C$11-((Settings!$C$11-Settings!$E$11)/(Settings!$E$8-Settings!$C$8)*$G190) -> 97.8619863 | J190: =VLOOKUP(H190,data[],2,FALSE) ->  | K190: =VLOOKUP(H190,data[],12,FALSE) -> 
G191: 186 | H191: 2017-02-15 | I191: =Settings!$C$11-((Settings!$C$11-Settings!$E$11)/(Settings!$E$8-Settings!$C$8)*$G191) -> 97.74178082 | J191: =VLOOKUP(H191,data[],2,FALSE) ->  | K191: =VLOOKUP(H191,data[],12,FALSE) -> 
G192: 187 | H192: 2017-02-16 | I192: =Settings!$C$11-((Settings!$C$11-Settings!$E$11)/(Settings!$E$8-Settings!$C$8)*$G192) -> 97.62157534 | J192: =VLOOKUP(H192,data[],2,FALSE) ->  | K192: =VLOOKUP(H192,data[],12,FALSE) -> 
G193: 188 | H193: 2017-02-17 | I193: =Settings!$C$11-((Settings!$C$11-Settings!$E$11)/(Settings!$E$8-Settings!$C$8)*$G193) -> 97.50136986 | J193: =VLOOKUP(H193,data[],2,FALSE) ->  | K193: =VLOOKUP(H193,data[],12,FALSE) -> 
G194: 189 | H194: 2017-02-18 | I194: =Settings!$C$11-((Settings!$C$11-Settings!$E$11)/(Settings!$E$8-Settings!$C$8)*$G194) -> 97.38116438 | J194: =VLOOKUP(H194,data[],2,FALSE) ->  | K194: =VLOOKUP(H194,data[],12,FALSE) -> 
G195: 190 | H195: 2017-02-19 | I195: =Settings!$C$11-((Settings!$C$11-Settings!$E$11)/(Settings!$E$8-Settings!$C$8)*$G195) -> 97.2609589 | J195: =VLOOKUP(H195,data[],2,FALSE) ->  | K195: =VLOOKUP(H195,data[],12,FALSE) -> 
G196: 191 | H196: 2017-02-20 | I196: =Settings!$C$11-((Settings!$C$11-Settings!$E$11)/(Settings!$E$8-Settings!$C$8)*$G196) -> 97.14075342 | J196: =VLOOKUP(H196,data[],2,FALSE) ->  | K196: =VLOOKUP(H196,data[],12,FALSE) -> 
G197: 192 | H197: 2017-02-21 | I197: =Settings!$C$11-((Settings!$C$11-Settings!$E$11)/(Settings!$E$8-Settings!$C$8)*$G197) -> 97.02054795 | J197: =VLOOKUP(H197,data[],2,FALSE) ->  | K197: =VLOOKUP(H197,data[],12,FALSE) -> 
G198: =G197+1 -> 193 | H198: =H197+1 -> 2017-02-22 | I198: =Settings!$C$11-((Settings!$C$11-Settings!$E$11)/(Settings!$E$8-Settings!$C$8)*$G198) -> 96.90034247 | J198: =VLOOKUP(H198,data[],2,FALSE) ->  | K198: =VLOOKUP(H198,data[],12,FALSE) -> 
G199: 194 | H199: 2017-02-23 | I199: =Settings!$C$11-((Settings!$C$11-Settings!$E$11)/(Settings!$E$8-Settings!$C$8)*$G199) -> 96.78013699 | J199: =VLOOKUP(H199,data[],2,FALSE) ->  | K199: =VLOOKUP(H199,data[],12,FALSE) -> 
G200: 195 | H200: 2017-02-24 | I200: =Settings!$C$11-((Settings!$C$11-Settings!$E$11)/(Settings!$E$8-Settings!$C$8)*$G200) -> 96.65993151 | J200: =VLOOKUP(H200,data[],2,FALSE) ->  | K200: =VLOOKUP(H200,data[],12,FALSE) -> 
G201: 196 | H201: 2017-02-25 | I201: =Settings!$C$11-((Settings!$C$11-Settings!$E$11)/(Settings!$E$8-Settings!$C$8)*$G201) -> 96.53972603 | J201: =VLOOKUP(H201,data[],2,FALSE) ->  | K201: =VLOOKUP(H201,data[],12,FALSE) -> 
... 292 more rows
